Workbook

Sheet Pie Chart
A1: Choose County: | B1: Marion | C1: Source of Meals | D1: Meal Equivalents
C2: SNAP | D2: =INDEX(SNAP!S:S,MATCH($B$1,SNAP!P:P,0)) -> 164327510
C3: F&R School/Summer | D3: =INDEX('School Meals'!F:F,MATCH($B$1,'School Meals'!A:A,0))+INDEX('Summer Meals'!E:E,MATCH($B$1,'Summer Meals'!A:A,0)) -> 25324274
C4: FA Food Bank-non-Federal | D4: =INDEX('Feeding America Food Bank'!I:I,MATCH($B$1,'Feeding America Food Bank'!B:B,0)) -> 9140576.667
C5: FA Food Bank-Federal | D5: =INDEX('Feeding America Food Bank'!H:H,MATCH($B$1,'Feeding America Food Bank'!B:B,0)) -> 2957445.833
C6: WIC | D6: =INDEX(WIC!D:D,MATCH($B$1,WIC!A:A,0)) -> 10887103.47
C7: Charitable Response | D7: =INDEX('Charitable Response'!F:F,MATCH($B$1,'Charitable Response'!A:A,0)) -> 4657738.663
C8: Other Private | D8: =INDEX('Other Sources'!B:B,MATCH($B$1,'Other Sources'!A:A,0)) -> 6196140.267
C9: Other Fed | D9: =INDEX('Other Sources'!C:C,MATCH($B$1,'Other Sources'!A:A,0)) -> 282041.9
C10: -------------------------------------------------------------
C11: 2012 Total | D11: =SUM(D2:D9) -> 223772830.8
C17: Federal | D17: =D2+D3+D5+D6+D9 -> 203778375.2 | F17: =D17/D11 -> 0.9106484218 | I17: County: | K17: =B1 -> Marion
C18: Non-Federal | D18: =D4+D7+D8 -> 19994455.6 | F18: =D18/D11 -> 0.08935157821
I30: Conversion from $ to Pounds | O30: 1.66
I31: Conversion from Pounds to Meals | O31: 1.2

Sheet SNAP (hidden)
A1: County | B1: Jan | C1: Feb | D1: Mar | E1: Apr | F1: May | G1: Jun | H1: Jul | I1: Aug | J1: Sept | K1: Oct | L1: Nov | M1: Dec | N1: Total | Q1: Dollars | R1: Pounds | S1: Meals
A2: Adams | B2: 381.3 | C2: 383 | D2: 387.1 | E2: 378.5 | F2: 380.1 | G2: 388.6 | H2: 402.4 | I2: 410.3 | J2: 381.5 | K2: 384 | L2: 387.8 | M2: 386.2 | N2: =SUM(B2:M2) -> 4650.8 | P2: =A2 -> Adams | Q2: =N2*1000 -> 4650800 | R2: =Q2/'Pie Chart'!$O$30 -> 2801686.747 | S2: =R2/'Pie Chart'!$O$31 -> 2334738.956
A3: Allen | B3: 7225.5 | C3: 7215.8 | D3: 7234.6 | E3: 7184.5 | F3: 7239 | G3: 7231.5 | H3: 8968.2 | I3: 7383.1 | J3: 7363.6 | K3: 7392.3 | L3: 7365.1 | M3: 7372.9 | N3: 89176.1 | P3: =A3 -> Allen | Q3: =N3*1000 -> 89176100 | R3: =Q3/'Pie Chart'!$O$30 -> 53720542.17 | S3: =R3/'Pie Chart'!$O$31 -> 44767118.47
A4: Bartholomew | B4: 1061 | C4: 1050.5 | D4: 1060.5 | E4: 1036 | F4: 1049.8 | G4: 1018.9 | H4: 1031 | I4: 1051.4 | J4: 1047 | K4: 1053.2 | L4: 1040.9 | M4: 1062.8 | N4: 12563 | P4: Bartholomew | Q4: 12563000 | R4: =Q4/'Pie Chart'!$O$30 -> 7568072.289 | S4: =R4/'Pie Chart'!$O$31 -> 6306726.908
A5: Benton | B5: 160.5 | C5: 154.1 | D5: 150.8 | E5: 144.3 | F5: 146 | G5: 139 | H5: 133.6 | I5: 147.5 | J5: 150.9 | K5: 145.2 | L5: 143.8 | M5: 143.5 | N5: 1759.2 | P5: Benton | Q5: 1759200 | R5: =Q5/'Pie Chart'!$O$30 -> 1059759.036 | S5: =R5/'Pie Chart'!$O$31 -> 883132.5301
A6: Blackford | B6: 284.5 | C6: 283.5 | D6: 288.2 | E6: 285.5 | F6: 282.2 | G6: 275.6 | H6: 274 | I6: 279.7 | J6: 283.9 | K6: 279.6 | L6: 281.8 | M6: 288.7 | N6: 3387.2 | P6: Blackford | Q6: 3387200 | R6: =Q6/'Pie Chart'!$O$30 -> 2040481.928 | S6: =R6/'Pie Chart'!$O$31 -> 1700401.606
A7: Boone | B7: 499.8 | C7: 501 | D7: 499.6 | E7: 504.2 | F7: 500.8 | G7: 499.4 | H7: 492.8 | I7: 497.1 | J7: 498.9 | K7: 507.2 | L7: 501.5 | M7: 501.1 | N7: 6003.4 | P7: Boone | Q7: 6003400 | R7: =Q7/'Pie Chart'!$O$30 -> 3616506.024 | S7: =R7/'Pie Chart'!$O$31 -> 3013755.02
A8: Brown | B8: 198 | C8: 203 | D8: 203.3 | E8: 196.9 | F8: 205.2 | G8: 201.2 | H8: 199.7 | I8: 207 | J8: 207.3 | K8: 206.4 | L8: 208.4 | M8: 204.5 | N8: 2440.9 | P8: Brown | Q8: 2440900 | R8: =Q8/'Pie Chart'!$O$30 -> 1470421.687 | S8: =R8/'Pie Chart'!$O$31 -> 1225351.406
A9: Carroll | B9: 198.9 | C9: 194.5 | D9: 197.2 | E9: 192.3 | F9: 192.8 | G9: 201.4 | H9: 198.7 | I9: 202.1 | J9: 202.9 | K9: 207.6 | L9: 202.4 | M9: 204.1 | N9: 2394.9 | P9: Carroll | Q9: 2394900 | R9: =Q9/'Pie Chart'!$O$30 -> 1442710.843 | S9: =R9/'Pie Chart'!$O$31 -> 1202259.036
A10: Cass | B10: 703 | C10: 697.7 | D10: 706.5 | E10: 697.2 | F10: 689.7 | G10: 685.4 | H10: 705.3 | I10: 700 | J10: 705.3 | K10: 722.1 | L10: 725.3 | M10: 725 | N10: 8462.5 | P10: Cass | Q10: 8462500 | R10: =Q10/'Pie Chart'!$O$30 -> 5097891.566 | S10: =R10/'Pie Chart'!$O$31 -> 4248242.972
A11: Clark | B11: 1669 | C11: 1644.6 | D11: 1870 | E11: 1635.4 | F11: 1647.1 | G11: 1628.9 | H11: 1642 | I11: 1639.8 | J11: 1616.5 | K11: 1626.1 | L11: 1619.3 | M11: 1614.6 | N11: 19853.3 | P11: Clark | Q11: 19853300 | R11: =Q11/'Pie Chart'!$O$30 -> 11959819.28 | S11: =R11/'Pie Chart'!$O$31 -> 9966516.064
A12: Clay | B12: 473.2 | C12: 472.6 | D12: 480.9 | E12: 478.3 | F12: 483.3 | G12: 494.5 | H12: 496.4 | I12: 497.9 | J12: 512.7 | K12: 514.3 | L12: 511 | M12: 516.7 | N12: 5931.8 | P12: Clay | Q12: 5931800 | R12: =Q12/'Pie Chart'!$O$30 -> 3573373.494 | S12: =R12/'Pie Chart'!$O$31 -> 2977811.245
A13: Clinton | B13: 622.4 | C13: 624.6 | D13: 611.4 | E13: 623.5 | F13: 619.4 | G13: 611.8 | H13: 622.7 | I13: 622.5 | J13: 614.3 | K13: 623.2 | L13: 615.1 | M13: 620.3 | N13: 7431.2 | P13: Clinton | Q13: 7431200 | R13: =Q13/'Pie Chart'!$O$30 -> 4476626.506 | S13: =R13/'Pie Chart'!$O$31 -> 3730522.088
A14: Crawford | B14: 204.3 | C14: 199.8 | D14: 198.5 | E14: 196.5 | F14: 200.3 | G14: 201.6 | H14: 201 | I14: 202 | J14: 202.4 | K14: 205.5 | L14: 204.9 | M14: 207.5 | N14: 2424.3 | P14: Crawford | Q14: 2424300 | R14: =Q14/'Pie Chart'!$O$30 -> 1460421.687 | S14: =R14/'Pie Chart'!$O$31 -> 1217018.072
A15: Daviess | B15: 428.3 | C15: 425.4 | D15: 418.9 | E15: 419.7 | F15: 427.2 | G15: 424.8 | H15: 436.1 | I15: 442.7 | J15: 444 | K15: 437.5 | L15: 441.4 | M15: 442.2 | N15: 5188.2 | P15: Daviess | Q15: 5188200 | R15: =Q15/'Pie Chart'!$O$30 -> 3125421.687 | S15: =R15/'Pie Chart'!$O$31 -> 2604518.072
A16: Dearborn | B16: 653.8 | C16: 652.9 | D16: 659.6 | E16: 661.7 | F16: 664.3 | G16: 670.5 | H16: 685.2 | I16: 694.3 | J16: 693.7 | K16: 700.8 | L16: 690.8 | M16: 701.4 | N16: 8129 | P16: Dearborn | Q16: 8129000 | R16: =Q16/'Pie Chart'!$O$30 -> 4896987.952 | S16: =R16/'Pie Chart'!$O$31 -> 4080823.293
A17: Decatur | B17: 435.9 | C17: 430.7 | D17: 426.9 | E17: 430.4 | F17: 429 | G17: 417.5 | H17: 427.5 | I17: 428.8 | J17: 431.4 | K17: 431.5 | L17: 421.5 | M17: 420.2 | N17: 5131.3 | P17: Decatur | Q17: 5131300 | R17: =Q17/'Pie Chart'!$O$30 -> 3091144.578 | S17: =R17/'Pie Chart'!$O$31 -> 2575953.815
A18: Dekalb | B18: 587.3 | C18: 585.1 | D18: 586.4 | E18: 566.4 | F18: 572.2 | G18: 567.4 | H18: 572.7 | I18: 568 | J18: 551.7 | K18: 557.3 | L18: 561 | M18: 558.2 | N18: 6833.7 | P18: Dekalb | Q18: 6833700 | R18: =Q18/'Pie Chart'!$O$30 -> 4116686.747 | S18: =R18/'Pie Chart'!$O$31 -> 3430572.289
A19: Delaware | B19: 2614.1 | C19: 2622 | D19: 2642.3 | E19: 2626.8 | F19: 2673 | G19: 2699 | H19: 2701.8 | I19: 2727.1 | J19: 2719.6 | K19: 2752.2 | L19: 2740.1 | M19: 2700.9 | N19: 32218.9 | P19: Delaware | Q19: 32218900 | R19: =Q19/'Pie Chart'!$O$30 -> 19408975.9 | S19: =R19/'Pie Chart'!$O$31 -> 16174146.59
A20: Dubois | B20: 287.9 | C20: 291.9 | D20: 294 | E20: 289.4 | F20: 285.2 | G20: 283.2 | H20: 283 | I20: 280.3 | J20: 274.4 | K20: 281.3 | L20: 272.5 | M20: 265.3 | N20: 3388.4 | P20: Dubois | Q20: 3388400 | R20: =Q20/'Pie Chart'!$O$30 -> 2041204.819 | S20: =R20/'Pie Chart'!$O$31 -> 1701004.016
A21: Elkhart | B21: 3880.7 | C21: 3795.8 | D21: 3725.9 | E21: 3633.6 | F21: 3583.7 | G21: 3542.5 | H21: 3561.1 | I21: 3590.2 | J21: 3586.7 | K21: 3599.2 | L21: 3559.8 | M21: 3567.8 | N21: 43627 | P21: Elkhart | Q21: 43627000 | R21: =Q21/'Pie Chart'!$O$30 -> 26281325.3 | S21: =R21/'Pie Chart'!$O$31 -> 21901104.42
A22: Fayette | B22: 687.6 | C22: 679.5 | D22: 679.4 | E22: 666.8 | F22: 684.5 | G22: 685.5 | H22: 685.3 | I22: 684.9 | J22: 688.7 | K22: 686.8 | L22: 684.3 | M22: 683.6 | N22: 8196.9 | P22: Fayette | Q22: 8196900 | R22: =Q22/'Pie Chart'!$O$30 -> 4937891.566 | S22: =R22/'Pie Chart'!$O$31 -> 4114909.639
A23: Floyd | B23: 1295.9 | C23: 1289.3 | D23: 1295 | E23: 1275.7 | F23: 1294.8 | G23: 1299.2 | H23: 1292.7 | I23: 1290.5 | J23: 1291.3 | K23: 1292.1 | L23: 1286 | M23: 1265.6 | N23: 15468.1 | P23: Floyd | Q23: 15468100 | R23: =Q23/'Pie Chart'!$O$30 -> 9318132.53 | S23: =R23/'Pie Chart'!$O$31 -> 7765110.442
A24: Fountain | B24: 272.8 | C24: 275.3 | D24: 273.4 | E24: 269.7 | F24: 269.4 | G24: 268.1 | H24: 262.6 | I24: 262.1 | J24: 263 | K24: 266.8 | L24: 276.3 | M24: 277.2 | N24: 3236.7 | P24: Fountain | Q24: 3236700 | R24: =Q24/'Pie Chart'!$O$30 -> 1949819.277 | S24: =R24/'Pie Chart'!$O$31 -> 1624849.398
A25: Franklin | B25: 327.9 | C25: 331 | D25: 333.6 | E25: 332.1 | F25: 320.1 | G25: 317.5 | H25: 317.5 | I25: 325 | J25: 323.3 | K25: 332 | L25: 315.2 | M25: 322 | N25: 3897.2 | P25: Franklin | Q25: 3897200 | R25: =Q25/'Pie Chart'!$O$30 -> 2347710.843 | S25: =R25/'Pie Chart'!$O$31 -> 1956425.703
A26: Fulton | B26: 377 | C26: 375.1 | D26: 362.1 | E26: 365.3 | F26: 362.8 | G26: 354.8 | H26: 636.6 | I26: 362.9 | J26: 368.2 | K26: 362.1 | L26: 364.1 | M26: 361.5 | N26: 4652.5 | P26: Fulton | Q26: 4652500 | R26: =Q26/'Pie Chart'!$O$30 -> 2802710.843 | S26: =R26/'Pie Chart'!$O$31 -> 2335592.369
A27: Gibson | B27: 379.8 | C27: 376 | D27: 373.7 | E27: 372.7 | F27: 376.4 | G27: 380.5 | H27: 377.1 | I27: 388.1 | J27: 294.9 | K27: 397.5 | L27: 390.8 | M27: 387.6 | N27: 4495.1 | P27: Gibson | Q27: 4495100 | R27: =Q27/'Pie Chart'!$O$30 -> 2707891.566 | S27: =R27/'Pie Chart'!$O$31 -> 2256576.305
A28: Grant | B28: 1724.9 | C28: 1730.1 | D28: 1722.7 | E28: 1705.4 | F28: 1716.7 | G28: 1710.7 | H28: 1730.4 | I28: 1741.4 | J28: 1740.4 | K28: 1731.6 | L28: 1734.4 | M28: 1745.9 | N28: 20734.6 | P28: Grant | Q28: 20734600 | R28: =Q28/'Pie Chart'!$O$30 -> 12490722.89 | S28: =R28/'Pie Chart'!$O$31 -> 10408935.74
A29: Greene | B29: 573.8 | C29: 566.9 | D29: 563.9 | E29: 561.1 | F29: 566.5 | G29: 564.7 | H29: 572.1 | I29: 578.6 | J29: 568.4 | K29: 574.7 | L29: 569.4 | M29: 564.9 | N29: 6825 | P29: Greene | Q29: 6825000 | R29: =Q29/'Pie Chart'!$O$30 -> 4111445.783 | S29: =R29/'Pie Chart'!$O$31 -> 3426204.819
A30: Hamilton | B30: 1301.4 | C30: 1296.4 | D30: 1314.2 | E30: 1297.9 | F30: 1311.7 | G30: 1318.2 | H30: 1307.7 | I30: 1344.4 | J30: 1343.5 | K30: 1362.7 | L30: 1334.7 | M30: 1318.5 | N30: 15851.3 | P30: Hamilton | Q30: 15851300 | R30: =Q30/'Pie Chart'!$O$30 -> 9548975.904 | S30: =R30/'Pie Chart'!$O$31 -> 7957479.92
A31: Hancock | B31: 729.9 | C31: 733.9 | D31: 727.8 | E31: 727.5 | F31: 718 | G31: 724.6 | H31: 729.1 | I31: 737.7 | J31: 735.9 | K31: 733.8 | L31: 730.7 | M31: 732.8 | N31: 8761.7 | P31: Hancock | Q31: 8761700 | R31: =Q31/'Pie Chart'!$O$30 -> 5278132.53 | S31: =R31/'Pie Chart'!$O$31 -> 4398443.775
A32: Harrison | B32: 552.4 | C32: 545.3 | D32: 546.4 | E32: 537.7 | F32: 538.9 | G32: 540 | H32: 532.4 | I32: 533.8 | J32: 530.6 | K32: 538.5 | L32: 522.9 | M32: 520 | N32: 6438.9 | P32: Harrison | Q32: 6438900 | R32: =Q32/'Pie Chart'!$O$30 -> 3878855.422 | S32: =R32/'Pie Chart'!$O$31 -> 3232379.518
A33: Hendricks | B33: 884.3 | C33: 889.5 | D33: 906.3 | E33: 894.8 | F33: 911.3 | G33: 902.7 | H33: 898 | I33: 903.9 | J33: 921.8 | K33: 933.3 | L33: 923.3 | M33: 911.2 | N33: 10880.4 | P33: Hendricks | Q33: 10880400 | R33: =Q33/'Pie Chart'!$O$30 -> 6554457.831 | S33: =R33/'Pie Chart'!$O$31 -> 5462048.193
A34: Henry | B34: 1062.1 | C34: 1047.2 | D34: 1057.3 | E34: 1053.9 | F34: 1049.2 | G34: 1047.2 | H34: 1047.9 | I34: 1059.2 | J34: 1066.3 | K34: 1048.4 | L34: 1049.9 | M34: 1057.1 | N34: 12645.7 | P34: Henry | Q34: 12645700 | R34: =Q34/'Pie Chart'!$O$30 -> 7617891.566 | S34: =R34/'Pie Chart'!$O$31 -> 6348242.972
A35: Howard | B35: 1937.5 | C35: 1910.5 | D35: 1902.5 | E35: 1887.9 | F35: 1911.4 | G35: 1913.9 | H35: 1929.9 | I35: 1953.8 | J35: 1965.7 | K35: 1963.6 | L35: 1950.8 | M35: 1927.6 | N35: 23155.1 | P35: Howard | Q35: 23155100 | R35: =Q35/'Pie Chart'!$O$30 -> 13948855.42 | S35: =R35/'Pie Chart'!$O$31 -> 11624046.18
A36: Huntington | B36: 560.7 | C36: 554.7 | D36: 555.2 | E36: 543.2 | F36: 537.1 | G36: 537.2 | H36: 545.6 | I36: 547.4 | J36: 556.3 | K36: 565.4 | L36: 568.5 | M36: 576.1 | N36: 6647.4 | P36: Huntington | Q36: 6647400 | R36: =Q36/'Pie Chart'!$O$30 -> 4004457.831 | S36: =R36/'Pie Chart'!$O$31 -> 3337048.193
A37: Jackson | B37: 727 | C37: 719.3 | D37: 720.6 | E37: 706.2 | F37: 700.1 | G37: 716.5 | H37: 726.5 | I37: 733.6 | J37: 736.7 | K37: 736.8 | L37: 742.8 | M37: 739.9 | N37: 8706 | P37: Jackson | Q37: 8706000 | R37: =Q37/'Pie Chart'!$O$30 -> 5244578.313 | S37: =R37/'Pie Chart'!$O$31 -> 4370481.928
A38: Jasper | B38: 442.6 | C38: 447.3 | D38: 433.5 | E38: 419.4 | F38: 425.9 | G38: 425.3 | H38: 430.3 | I38: 434.8 | J38: 436.8 | K38: 429.5 | L38: 434 | M38: 440.1 | N38: 5199.5 | P38: Jasper | Q38: 5199500 | R38: =Q38/'Pie Chart'!$O$30 -> 3132228.916 | S38: =R38/'Pie Chart'!$O$31 -> 2610190.763
A39: Jay | B39: 374.1 | C39: 373.1 | D39: 368.3 | E39: 359.9 | F39: 354.3 | G39: 353.9 | H39: 394.4 | I39: 356.4 | J39: 352.8 | K39: 360.4 | L39: 355.5 | M39: 361.1 | N39: 4364.2 | P39: Jay | Q39: 4364200 | R39: =Q39/'Pie Chart'!$O$30 -> 2629036.145 | S39: =R39/'Pie Chart'!$O$31 -> 2190863.454
A40: Jefferson | B40: 587.4 | C40: 574.6 | D40: 584.5 | E40: 582 | F40: 580.5 | G40: 569.6 | H40: 571 | I40: 574.6 | J40: 577.9 | K40: 567.3 | L40: 570.2 | M40: 568.2 | N40: 6907.8 | P40: Jefferson | Q40: 6907800 | R40: =Q40/'Pie Chart'!$O$30 -> 4161325.301 | S40: =R40/'Pie Chart'!$O$31 -> 3467771.084
A41: Jennings | B41: 561.8 | C41: 566.3 | D41: 545.4 | E41: 537.6 | F41: 534.3 | G41: 537.8 | H41: 535.4 | I41: 535.7 | J41: 536.3 | K41: 546.3 | L41: 547.4 | M41: 554.3 | N41: 6538.6 | P41: Jennings | Q41: 6538600 | R41: =Q41/'Pie Chart'!$O$30 -> 3938915.663 | S41: =R41/'Pie Chart'!$O$31 -> 3282429.719
A42: Johnson | B42: 1556 | C42: 1577.1 | D42: 1571.5 | E42: 1582.2 | F42: 1578.9 | G42: 1569.9 | H42: 1553.2 | I42: 1576.8 | J42: 1558.7 | K42: 1564.5 | L42: 1560.1 | M42: 1548.2 | N42: 18797.1 | P42: Johnson | Q42: 18797100 | R42: =Q42/'Pie Chart'!$O$30 -> 11323554.22 | S42: =R42/'Pie Chart'!$O$31 -> 9436295.181
A43: Knox | B43: 693.4 | C43: 688.2 | D43: 689.2 | E43: 682.8 | F43: 692.4 | G43: 711.8 | H43: 704.4 | I43: 712.5 | J43: 721.9 | K43: 733.8 | L43: 728.9 | M43: 729.9 | N43: 8489.2 | P43: Knox | Q43: 8489200 | R43: =Q43/'Pie Chart'!$O$30 -> 5113975.904 | S43: =R43/'Pie Chart'!$O$31 -> 4261646.586
A44: Kosciusko | B44: 1013.6 | C44: 995 | D44: 999.9 | E44: 987.6 | F44: 997 | G44: 988.9 | H44: 1006.1 | I44: 1002.2 | J44: 1006.4 | K44: 999.6 | L44: 982.1 | M44: 988.7 | N44: 11967.1 | P44: Kosciusko | Q44: 11967100 | R44: =Q44/'Pie Chart'!$O$30 -> 7209096.386 | S44: =R44/'Pie Chart'!$O$31 -> 6007580.321
A45: Lagrange | B45: 283.4 | C45: 273 | D45: 266.8 | E45: 256.1 | F45: 242.7 | G45: 230.9 | H45: 232.3 | I45: 242.2 | J45: 251.6 | K45: 245.9 | L45: 248 | M45: 244 | N45: 3016.9 | P45: Lagrange | Q45: 3016900 | R45: =Q45/'Pie Chart'!$O$30 -> 1817409.639 | S45: =R45/'Pie Chart'!$O$31 -> 1514508.032
A46: Lake | B46: 12918 | C46: 12724 | D46: 12624.4 | E46: 12483.6 | F46: 13465.4 | G46: 12978.7 | H46: 14263.2 | I46: 15171.4 | J46: 13000.2 | K46: 13150.9 | L46: 12982.6 | M46: 13045 | N46: 158807.4 | P46: Lake | Q46: 158807400 | R46: =Q46/'Pie Chart'!$O$30 -> 95667108.43 | S46: =R46/'Pie Chart'!$O$31 -> 79722590.36
A47: Laporte | B47: 2515.8 | C47: 2483.6 | D47: 2466.9 | E47: 2451.7 | F47: 2444.8 | G47: 2443.9 | H47: 2487.9 | I47: 2504 | J47: 2510.2 | K47: 2539.7 | L47: 2522.8 | M47: 2534.5 | N47: 29905.8 | P47: Laporte | Q47: 29905800 | R47: =Q47/'Pie Chart'!$O$30 -> 18015542.17 | S47: =R47/'Pie Chart'!$O$31 -> 15012951.81
A48: Lawrence | B48: 792.4 | C48: 790.6 | D48: 781.6 | E48: 796.2 | F48: 787.5 | G48: 798.7 | H48: 791.5 | I48: 798.8 | J48: 786.6 | K48: 794.9 | L48: 796.8 | M48: 790 | N48: 9505.6 | P48: Lawrence | Q48: 9505600 | R48: =Q48/'Pie Chart'!$O$30 -> 5726265.06 | S48: =R48/'Pie Chart'!$O$31 -> 4771887.55
A49: Madison | B49: 2965.3 | C49: 2977.3 | D49: 2925.7 | E49: 2915.8 | F49: 2892.2 | G49: 2906.3 | H49: 2978.7 | I49: 3000.1 | J49: 2989.1 | K49: 3001.7 | L49: 3020.2 | M49: 3022.7 | N49: 35595.1 | P49: Madison | Q49: 35595100 | R49: =Q49/'Pie Chart'!$O$30 -> 21442831.33 | S49: =R49/'Pie Chart'!$O$31 -> 17869026.1
A50: Marion | B50: 25742.7 | C50: 25545 | D50: 25793.2 | E50: 26480.3 | F50: 26987.9 | G50: 27421.5 | H50: 28014 | I50: 28583.3 | J50: 28572.6 | K50: 28349.6 | L50: 27955.3 | M50: 27895 | N50: =SUM(B50:M50) -> 327340.4 | P50: Marion | Q50: 327340400 | R50: =Q50/'Pie Chart'!$O$30 -> 197193012 | S50: =R50/'Pie Chart'!$O$31 -> 164327510
A51: Marshall | B51: 619 | C51: 620.9 | D51: 598.8 | E51: 583 | F51: 585.9 | G51: 564.2 | H51: 559.1 | I51: 571.5 | J51: 568.1 | K51: 568.9 | L51: 574.5 | M51: 585.1 | N51: 6999 | P51: Marshall | Q51: 6999000 | R51: =Q51/'Pie Chart'!$O$30 -> 4216265.06 | S51: =R51/'Pie Chart'!$O$31 -> 3513554.217
A52: Martin | B52: 143.6 | C52: 143.4 | D52: 148.7 | E52: 150.8 | F52: 149.6 | G52: 157.1 | H52: 152.7 | I52: 153.7 | J52: 154.9 | K52: 155 | L52: 150.7 | M52: 153.5 | N52: 1813.7 | P52: Martin | Q52: 1813700 | R52: =Q52/'Pie Chart'!$O$30 -> 1092590.361 | S52: =R52/'Pie Chart'!$O$31 -> 910491.9679
A53: Miami | B53: 736.8 | C53: 742 | D53: 738.9 | E53: 727.2 | F53: 715.8 | G53: 713.9 | H53: 727 | I53: 736.5 | J53: 737.9 | K53: 724.3 | L53: 717.2 | M53: 727.9 | N53: 8745.4 | P53: Miami | Q53: 8745400 | R53: =Q53/'Pie Chart'!$O$30 -> 5268313.253 | S53: =R53/'Pie Chart'!$O$31 -> 4390261.044
A54: Monroe | B54: 1479.6 | C54: 1490.4 | D54: 1491.7 | E54: 1467.9 | F54: 1470.7 | G54: 1486.7 | H54: 1488.3 | I54: 1503.1 | J54: 1489.3 | K54: 1500 | L54: 1483.6 | M54: 1489.7 | N54: 17841 | P54: Monroe | Q54: 17841000 | R54: =Q54/'Pie Chart'!$O$30 -> 10747590.36 | S54: =R54/'Pie Chart'!$O$31 -> 8956325.301
A55: Montgomery | B55: 621.6 | C55: 607.3 | D55: 612.7 | E55: 610.9 | F55: 619.6 | G55: 613 | H55: 615.9 | I55: 617.5 | J55: 604.4 | K55: 608 | L55: 612.1 | M55: 622 | N55: 7365 | P55: Montgomery | Q55: 7365000 | R55: =Q55/'Pie Chart'!$O$30 -> 4436746.988 | S55: =R55/'Pie Chart'!$O$31 -> 3697289.157
A56: Morgan | B56: 1241.9 | C56: 1228.5 | D56: 1240.9 | E56: 1240.1 | F56: 1240.1 | G56: 1208.1 | H56: 1191.8 | I56: 1209.9 | J56: 1207 | K56: 1218.8 | L56: 1200.1 | M56: 1189.2 | N56: 14616.4 | P56: Morgan | Q56: 14616400 | R56: =Q56/'Pie Chart'!$O$30 -> 8805060.241 | S56: =R56/'Pie Chart'!$O$31 -> 7337550.201
A57: Newton | B57: 230.5 | C57: 231.1 | D57: 227.3 | E57: 226.8 | F57: 221.4 | G57: 219.6 | H57: 219 | I57: 234.6 | J57: 233.1 | K57: 242 | L57: 230.6 | M57: 231.6 | N57: 2747.6 | P57: Newton | Q57: 2747600 | R57: =Q57/'Pie Chart'!$O$30 -> 1655180.723 | S57: =R57/'Pie Chart'!$O$31 -> 1379317.269
A58: Noble | B58: 653.8 | C58: 655.4 | D58: 650.3 | E58: 638.1 | F58: 633.5 | G58: 634.8 | H58: 642.2 | I58: 635.9 | J58: 635 | K58: 636.6 | L58: 622.3 | M58: 625.6 | N58: 7663.5 | P58: Noble | Q58: 7663500 | R58: =Q58/'Pie Chart'!$O$30 -> 4616566.265 | S58: =R58/'Pie Chart'!$O$31 -> 3847138.554
A59: Ohio | B59: 56.1 | C59: 59.8 | D59: 61.7 | E59: 62.4 | F59: 63.3 | G59: 63.4 | H59: 63.5 | I59: 64.6 | J59: 63.5 | K59: 61.7 | L59: 61.3 | M59: 61.7 | N59: 743 | P59: Ohio | Q59: 743000 | R59: =Q59/'Pie Chart'!$O$30 -> 447590.3614 | S59: =R59/'Pie Chart'!$O$31 -> 372991.9679
A60: Orange | B60: 378.1 | C60: 382.2 | D60: 381.5 | E60: 381.2 | F60: 386.4 | G60: 385.3 | H60: 387.9 | I60: 399.1 | J60: 396.2 | K60: 397.9 | L60: 388.9 | M60: 389.8 | N60: 4654.5 | P60: Orange | Q60: 4654500 | R60: =Q60/'Pie Chart'!$O$30 -> 2803915.663 | S60: =R60/'Pie Chart'!$O$31 -> 2336596.386
A61: Owen | B61: 431.3 | C61: 424.1 | D61: 425.5 | E61: 422.8 | F61: 408.5 | G61: 408.7 | H61: 414.8 | I61: 416.6 | J61: 404.4 | K61: 400 | L61: 396.6 | M61: 402.8 | N61: 4956.1 | P61: Owen | Q61: 4956100 | R61: =Q61/'Pie Chart'!$O$30 -> 2985602.41 | S61: =R61/'Pie Chart'!$O$31 -> 2488002.008
A62: Parke | B62: 268.5 | C62: 259.9 | D62: 264.9 | E62: 266.3 | F62: 266.7 | G62: 263.4 | H62: 266.4 | I62: 271.8 | J62: 277.4 | K62: 279.4 | L62: 282.2 | M62: 279.8 | N62: 3246.7 | P62: Parke | Q62: 3246700 | R62: =Q62/'Pie Chart'!$O$30 -> 1955843.373 | S62: =R62/'Pie Chart'!$O$31 -> 1629869.478
A63: Perry | B63: 249.5 | C63: 240.5 | D63: 240.1 | E63: 242.5 | F63: 242.5 | G63: 240.4 | H63: 235.9 | I63: 239.5 | J63: 245.3 | K63: 255.7 | L63: 244.4 | M63: 244 | N63: 2920.3 | P63: Perry | Q63: 2920300 | R63: =Q63/'Pie Chart'!$O$30 -> 1759216.867 | S63: =R63/'Pie Chart'!$O$31 -> 1466014.056
A64: Pike | B64: 164.7 | C64: 155 | D64: 157.9 | E64: 159.6 | F64: 157.6 | G64: 159.5 | H64: 160 | I64: 165.2 | J64: 165 | K64: 168.5 | L64: 168.9 | M64: 171.8 | N64: 1953.7 | P64: Pike | Q64: 1953700 | R64: =Q64/'Pie Chart'!$O$30 -> 1176927.711 | S64: =R64/'Pie Chart'!$O$31 -> 980773.0924
A65: Porter | B65: 2002.5 | C65: 1951.8 | D65: 1943.7 | E65: 1914.2 | F65: 1905.4 | G65: 1883.2 | H65: 1886.5 | I65: 1940.4 | J65: 1914 | K65: 1928.2 | L65: 1892.9 | M65: 1936 | N65: 23098.8 | P65: Porter | Q65: 23098800 | R65: =Q65/'Pie Chart'!$O$30 -> 13914939.76 | S65: =R65/'Pie Chart'!$O$31 -> 11595783.13
A66: Posey | B66: 299.8 | C66: 297.5 | D66: 299.7 | E66: 302.9 | F66: 297.9 | G66: 303.9 | H66: 311.8 | I66: 311.2 | J66: 316.6 | K66: 313.3 | L66: 298.2 | M66: 298 | N66: =SUM(B66:M66) -> 3650.8 | P66: Posey | Q66: 3650800 | R66: =Q66/'Pie Chart'!$O$30 -> 2199277.108 | S66: =R66/'Pie Chart'!$O$31 -> 1832730.924
A67: Pulaski | B67: 219.3 | C67: 218.5 | D67: 209.7 | E67: 210.3 | F67: 208.6 | G67: 200.8 | H67: 199.2 | I67: 207.3 | J67: 205.2 | K67: 205.2 | L67: 200.7 | M67: 202.9 | N67: 2487.7 | P67: =A67 -> Pulaski | Q67: =N67*1000 -> 2487700 | R67: =Q67/'Pie Chart'!$O$30 -> 1498614.458 | S67: =R67/'Pie Chart'!$O$31 -> 1248845.382
A68: Putnam | B68: 533.2 | C68: 527.6 | D68: 526.7 | E68: 527.4 | F68: 522.1 | G68: 518.6 | H68: 526 | I68: 530.6 | J68: 527.9 | K68: 531.9 | L68: 528.9 | M68: 528.8 | N68: 6329.7 | P68: Putnam | Q68: 6329700 | R68: =Q68/'Pie Chart'!$O$30 -> 3813072.289 | S68: =R68/'Pie Chart'!$O$31 -> 3177560.241
A69: Randolph | B69: 484.1 | C69: 480.3 | D69: 473.4 | E69: 474 | F69: 470.4 | G69: 481.1 | H69: 489.4 | I69: 479.9 | J69: 487.5 | K69: 487.6 | L69: 475.1 | M69: 481.5 | N69: 5764.3 | P69: Randolph | Q69: 5764300 | R69: =Q69/'Pie Chart'!$O$30 -> 3472469.88 | S69: =R69/'Pie Chart'!$O$31 -> 2893724.9
A70: Ripley | B70: 390.8 | C70: 403.9 | D70: 401 | E70: 406.3 | F70: 394.6 | G70: 399.7 | H70: 392.9 | I70: 392.9 | J70: 394.7 | K70: 397.9 | L70: 391.6 | M70: 394.3 | N70: 4760.6 | P70: Ripley | Q70: 4760600 | R70: =Q70/'Pie Chart'!$O$30 -> 2867831.325 | S70: =R70/'Pie Chart'!$O$31 -> 2389859.438
A71: Rush | B71: 275.7 | C71: 273.5 | D71: 268.6 | E71: 267.5 | F71: 268.6 | G71: 264.2 | H71: 260.6 | I71: 264 | J71: 265.4 | K71: 265.9 | L71: 260.7 | M71: 257.1 | N71: 3191.8 | P71: Rush | Q71: 3191800 | R71: =Q71/'Pie Chart'!$O$30 -> 1922771.084 | S71: =R71/'Pie Chart'!$O$31 -> 1602309.237
A72: Saint Joseph | B72: 5845.6 | C72: 5821 | D72: 5757.4 | E72: 5695.2 | F72: 5763.5 | G72: 5767.4 | H72: 5854.6 | I72: 5950.3 | J72: 5966.3 | K72: 5976.1 | L72: 5910.3 | M72: 5992.4 | N72: 70300.1 | P72: Saint Joseph | Q72: 70300100 | R72: =Q72/'Pie Chart'!$O$30 -> 42349457.83 | S72: =R72/'Pie Chart'!$O$31 -> 35291214.86
A73: Scott | B73: 623.1 | C73: 618 | D73: 608.6 | E73: 587.5 | F73: 594.4 | G73: 585.9 | H73: 589.5 | I73: 585.3 | J73: 583.7 | K73: 582.8 | L73: 573.5 | M73: 576.4 | N73: 7108.7 | P73: Scott | Q73: 7108700 | R73: =Q73/'Pie Chart'!$O$30 -> 4282349.398 | S73: =R73/'Pie Chart'!$O$31 -> 3568624.498
A74: Shelby | B74: 725.2 | C74: 723.9 | D74: 721.9 | E74: 719 | F74: 712.6 | G74: 703.3 | H74: 699.5 | I74: 707.9 | J74: 710.6 | K74: 722.6 | L74: 715.2 | M74: 713 | N74: 8574.7 | P74: Shelby | Q74: 8574700 | R74: =Q74/'Pie Chart'!$O$30 -> 5165481.928 | S74: =R74/'Pie Chart'!$O$31 -> 4304568.273
A75: Spencer | B75: 217.9 | C75: 217.9 | D75: 231.6 | E75: 214.6 | F75: 213.4 | G75: 210.8 | H75: 211.7 | I75: 212.3 | J75: 214.7 | K75: 213.7 | L75: 222.1 | M75: 219.7 | N75: 2600.4 | P75: Spencer | Q75: 2600400 | R75: =Q75/'Pie Chart'!$O$30 -> 1566506.024 | S75: =R75/'Pie Chart'!$O$31 -> 1305421.687
A76: Starke | B76: 553.9 | C76: 562.7 | D76: 536.1 | E76: 522.8 | F76: 524.5 | G76: 530.1 | H76: 520.3 | I76: 543.5 | J76: 543.3 | K76: 546.9 | L76: 554.3 | M76: 550.2 | N76: 6488.6 | P76: Starke | Q76: 6488600 | R76: =Q76/'Pie Chart'!$O$30 -> 3908795.181 | S76: =R76/'Pie Chart'!$O$31 -> 3257329.317
A77: Steuben | B77: 494.1 | C77: 493.7 | D77: 492.8 | E77: 484.1 | F77: 476.6 | G77: 464.9 | H77: 460.7 | I77: 460.6 | J77: 454.5 | K77: 456 | L77: 445.5 | M77: 449.1 | N77: 5632.6 | P77: Steuben | Q77: 5632600 | R77: =Q77/'Pie Chart'!$O$30 -> 3393132.53 | S77: =R77/'Pie Chart'!$O$31 -> 2827610.442
A78: Sullivan | B78: 349.7 | C78: 346.8 | D78: 352.3 | E78: 347.7 | F78: 357.2 | G78: 364.8 | H78: 373.4 | I78: 375.7 | J78: 379.7 | K78: 386.9 | L78: 375.3 | M78: 382.6 | N78: 4392.1 | P78: Sullivan | Q78: 4392100 | R78: =Q78/'Pie Chart'!$O$30 -> 2645843.373 | S78: =R78/'Pie Chart'!$O$31 -> 2204869.478
A79: Switzerland | B79: 192.2 | C79: 190.4 | D79: 197.7 | E79: 193.6 | F79: 196.8 | G79: 193.2 | H79: 191.7 | I79: 205.2 | J79: 197.3 | K79: 205.7 | L79: 197.7 | M79: 199.1 | N79: 2360.6 | P79: Switzerland | Q79: 2360600 | R79: =Q79/'Pie Chart'!$O$30 -> 1422048.193 | S79: =R79/'Pie Chart'!$O$31 -> 1185040.161
A80: Tippecanoe | B80: 2353.3 | C80: 2331 | D80: 2336.8 | E80: 2341.9 | F80: 2370.5 | G80: 2373.5 | H80: 2386.4 | I80: 2391.3 | J80: 2411.6 | K80: 2435.7 | L80: 2428.7 | M80: 2443 | N80: 28603.7 | P80: Tippecanoe | Q80: 28603700 | R80: =Q80/'Pie Chart'!$O$30 -> 17231144.58 | S80: =R80/'Pie Chart'!$O$31 -> 14359287.15
A81: Tipton | B81: 196.9 | C81: 195.4 | D81: 196.6 | E81: 194.6 | F81: 193.1 | G81: 195.2 | H81: 199 | I81: 207.9 | J81: 200.3 | K81: 197.1 | L81: 193.9 | M81: 191.9 | N81: 2361.9 | P81: Tipton | Q81: 2361900 | R81: =Q81/'Pie Chart'!$O$30 -> 1422831.325 | S81: =R81/'Pie Chart'!$O$31 -> 1185692.771
A82: Union | B82: 133.9 | C82: 135.5 | D82: 133.7 | E82: 132.1 | F82: 127.9 | G82: 127.6 | H82: 131.7 | I82: 137.1 | J82: 135.9 | K82: 137 | L82: 138.4 | M82: 139.6 | N82: 1610.4 | P82: Union | Q82: 1610400 | R82: =Q82/'Pie Chart'!$O$30 -> 970120.4819 | S82: =R82/'Pie Chart'!$O$31 -> 808433.7349
A83: Vanderburgh | B83: 3489.2 | C83: 3459.3 | D83: 3434.3 | E83: 3414 | F83: 3438.7 | G83: 3464.8 | H83: 3502.5 | I83: 3545 | J83: 3535.6 | K83: 3539.4 | L83: 3484.9 | M83: 3500.3 | N83: 41808 | P83: Vanderburgh | Q83: 41808000 | R83: =Q83/'Pie Chart'!$O$30 -> 25185542.17 | S83: =R83/'Pie Chart'!$O$31 -> 20987951.81
A84: Vermillion | B84: 294.9 | C84: 292.1 | D84: 293.3 | E84: 286.8 | F84: 290.6 | G84: 289.3 | H84: 296.5 | I84: 291.2 | J84: 289 | K84: 289.9 | L84: 286.7 | M84: 291.7 | N84: 3492 | P84: Vermillion | Q84: 3492000 | R84: =Q84/'Pie Chart'!$O$30 -> 2103614.458 | S84: =R84/'Pie Chart'!$O$31 -> 1753012.048
A85: Vigo | B85: 2317.6 | C85: 2310 | D85: 2340 | E85: 2323.3 | F85: 2330.3 | G85: 2316.4 | H85: 2315.6 | I85: 2345.5 | J85: 2349 | K85: 2358.1 | L85: 2338.4 | M85: 2347.1 | N85: 27991.3 | P85: Vigo | Q85: 27991300 | R85: =Q85/'Pie Chart'!$O$30 -> 16862228.92 | S85: =R85/'Pie Chart'!$O$31 -> 14051857.43
A86: Wabash | B86: 486.5 | C86: 490.8 | D86: 504.7 | E86: 502.3 | F86: 493.4 | G86: 492.7 | H86: 489.3 | I86: 502.1 | J86: 504.2 | K86: 510.5 | L86: 499.6 | M86: 493.2 | N86: 5969.3 | P86: Wabash | Q86: 5969300 | R86: =Q86/'Pie Chart'!$O$30 -> 3595963.855 | S86: =R86/'Pie Chart'!$O$31 -> 2996636.546
A87: Warren | B87: 89.1 | C87: 91.4 | D87: 87.7 | E87: 90.6 | F87: 86.8 | G87: 90.4 | H87: 91.5 | I87: 97.9 | J87: 92.4 | K87: 91.9 | L87: 93.2 | M87: 93.2 | N87: 1096.1 | P87: Warren | Q87: 1096100 | R87: =Q87/'Pie Chart'!$O$30 -> 660301.2048 | S87: =R87/'Pie Chart'!$O$31 -> 550251.004
A88: Warrick | B88: 493.9 | C88: 489.8 | D88: 486.7 | E88: 471.5 | F88: 471.2 | G88: 472.4 | H88: 477.6 | I88: 484.5 | J88: 491.8 | K88: 494 | L88: 488.9 | M88: 490 | N88: 5812.3 | P88: Warrick | Q88: 5812300 | R88: =Q88/'Pie Chart'!$O$30 -> 3501385.542 | S88: =R88/'Pie Chart'!$O$31 -> 2917821.285
A89: Washington | B89: 537.8 | C89: 542.9 | D89: 576.8 | E89: 536.5 | F89: 533.8 | G89: 542 | H89: 534.2 | I89: 531.1 | J89: 528.9 | K89: 530.1 | L89: 522 | M89: 515.5 | N89: 6431.6 | P89: Washington | Q89: 6431600 | R89: =Q89/'Pie Chart'!$O$30 -> 3874457.831 | S89: =R89/'Pie Chart'!$O$31 -> 3228714.859
A90: Wayne | B90: 1520.3 | C90: 1525.4 | D90: 1527.8 | E90: 1517.8 | F90: 1518.2 | G90: 1508.6 | H90: 1517.4 | I90: 1527 | J90: 1529.4 | K90: 1534.9 | L90: 1520.5 | M90: 1526.2 | N90: 18273.5 | P90: Wayne | Q90: 18273500 | R90: =Q90/'Pie Chart'!$O$30 -> 11008132.53 | S90: =R90/'Pie Chart'!$O$31 -> 9173443.775
A91: Wells | B91: 283 | C91: 278.3 | D91: 270.5 | E91: 275.5 | F91: 274.5 | G91: 280.1 | H91: 276 | I91: 277.6 | J91: 274 | K91: 278.5 | L91: 277.8 | M91: 274.9 | N91: 3320.7 | P91: Wells | Q91: 3320700 | R91: =Q91/'Pie Chart'!$O$30 -> 2000421.687 | S91: =R91/'Pie Chart'!$O$31 -> 1667018.072
A92: White | B92: 328.8 | C92: 328.8 | D92: 322.2 | E92: 323.4 | F92: 320.9 | G92: 318.8 | H92: 314.2 | I92: 321.2 | J92: 323.7 | K92: 326.9 | L92: 315.2 | M92: 312.8 | N92: 3856.9 | P92: White | Q92: 3856900 | R92: =Q92/'Pie Chart'!$O$30 -> 2323433.735 | S92: =R92/'Pie Chart'!$O$31 -> 1936194.779
A93: Whitley | B93: 352.7 | C93: 351 | D93: 346.8 | E93: 336.8 | F93: 344.2 | G93: 340.9 | H93: 332.2 | I93: 336.4 | J93: 325.2 | K93: 328.1 | L93: 321.4 | M93: 323.8 | N93: =SUM(B93:M93) -> 4039.5 | P93: Whitley | Q93: 4039500 | R93: =Q93/'Pie Chart'!$O$30 -> 2433433.735 | S93: =R93/'Pie Chart'!$O$31 -> 2027861.446
A94: All | P94: All | Q94: =SUM(Q2:Q93) -> 1455697000 | R94: =SUM(R2:R93) -> 876925903.6 | S94: =SUM(S2:S93) -> 730771586.3

Sheet WIC (hidden)
A1: COUNTYNAME | B1: WIC 2012 $ | C1: Pounds | D1: Meals
A2: ADAMS | B2: 462707.11 | C2: =B2/'Pie Chart'!$O$30 -> 278739.2229 | D2: =C2/'Pie Chart'!$O$31 -> 232282.6857
A3: ALLEN | B3: 7243490.86 | C3: =B3/'Pie Chart'!$O$30 -> 4363548.711 | D3: =C3/'Pie Chart'!$O$31 -> 3636290.592
A4: BARTHOLOMEW | B4: 1453459.48 | C4: =B4/'Pie Chart'!$O$30 -> 875578 | D4: =C4/'Pie Chart'!$O$31 -> 729648.3333
A5: BENTON | B5: 108950.31 | C5: =B5/'Pie Chart'!$O$30 -> 65632.71687 | D5: =C5/'Pie Chart'!$O$31 -> 54693.93072
A6: BLACKFORD | B6: 274190.12 | C6: =B6/'Pie Chart'!$O$30 -> 165174.7711 | D6: =C6/'Pie Chart'!$O$31 -> 137645.6426
A7: BOONE | B7: 436876.33 | C7: =B7/'Pie Chart'!$O$30 -> 263178.512 | D7: =C7/'Pie Chart'!$O$31 -> 219315.4267
A8: BROWN | B8: 72481.64 | C8: =B8/'Pie Chart'!$O$30 -> 43663.63855 | D8: =C8/'Pie Chart'!$O$31 -> 36386.36546
A9: CARROLL | B9: 156141.53 | C9: =B9/'Pie Chart'!$O$30 -> 94061.16265 | D9: =C9/'Pie Chart'!$O$31 -> 78384.30221
A10: CASS | B10: 1055280.73 | C10: =B10/'Pie Chart'!$O$30 -> 635711.2831 | D10: =C10/'Pie Chart'!$O$31 -> 529759.4026
A11: CLARK | B11: 1845400.28 | C11: =B11/'Pie Chart'!$O$30 -> 1111686.916 | D11: =C11/'Pie Chart'!$O$31 -> 926405.7631
A12: CLAY | B12: 544494.99 | C12: =B12/'Pie Chart'!$O$30 -> 328009.0301 | D12: =C12/'Pie Chart'!$O$31 -> 273340.8584
A13: CLINTON | B13: 772655.67 | C13: =B13/'Pie Chart'!$O$30 -> 465455.2229 | D13: =C13/'Pie Chart'!$O$31 -> 387879.3524
A14: CRAWFORD | B14: 137876.1 | C14: =B14/'Pie Chart'!$O$30 -> 83057.89157 | D14: =C14/'Pie Chart'!$O$31 -> 69214.90964
A15: DARKE | B15: 70596.64 | C15: =B15/'Pie Chart'!$O$30 -> 42528.09639 | D15: =C15/'Pie Chart'!$O$31 -> 35440.08032
A16: DAVIESS | B16: 568444.76 | C16: =B16/'Pie Chart'!$O$30 -> 342436.6024 | D16: =C16/'Pie Chart'!$O$31 -> 285363.8353
A17: DEARBORN | B17: 686268.05 | C17: =B17/'Pie Chart'!$O$30 -> 413414.488 | D17: =C17/'Pie Chart'!$O$31 -> 344512.0733
A18: DECATUR | B18: 473948.13 | C18: =B18/'Pie Chart'!$O$30 -> 285510.9217 | D18: =C18/'Pie Chart'!$O$31 -> 237925.7681
A19: DEKALB | B19: 643061.04 | C19: =B19/'Pie Chart'!$O$30 -> 387386.1687 | D19: =C19/'Pie Chart'!$O$31 -> 322821.8072
A20: DELAWARE | B20: 1939297.43 | C20: =B20/'Pie Chart'!$O$30 -> 1168251.464 | D20: =C20/'Pie Chart'!$O$31 -> 973542.8865
A21: DUBOIS | B21: 691095.99 | C21: =B21/'Pie Chart'!$O$30 -> 416322.8855 | D21: =C21/'Pie Chart'!$O$31 -> 346935.738
A22: ELKHART | B22: 4778971.44 | C22: =B22/'Pie Chart'!$O$30 -> 2878898.458 | D22: =C22/'Pie Chart'!$O$31 -> 2399082.048
A23: FAYETTE | B23: 489740.72 | C23: =B23/'Pie Chart'!$O$30 -> 295024.5301 | D23: =C23/'Pie Chart'!$O$31 -> 245853.7751
A24: FLOYD | B24: 1131167.64 | C24: =B24/'Pie Chart'!$O$30 -> 681426.2892 | D24: =C24/'Pie Chart'!$O$31 -> 567855.241
A25: FOUNTAIN | B25: 354079.33 | C25: =B25/'Pie Chart'!$O$30 -> 213300.8012 | D25: =C25/'Pie Chart'!$O$31 -> 177750.6677
A26: FRANKLIN | B26: 148386.68 | C26: =B26/'Pie Chart'!$O$30 -> 89389.56627 | D26: =C26/'Pie Chart'!$O$31 -> 74491.30522
A27: FULTON | B27: 410219.27 | C27: =B27/'Pie Chart'!$O$30 -> 247120.0422 | D27: =C27/'Pie Chart'!$O$31 -> 205933.3685
A28: GIBSON | B28: 436767.91 | C28: =B28/'Pie Chart'!$O$30 -> 263113.1988 | D28: =C28/'Pie Chart'!$O$31 -> 219260.999
A29: GRANT | B29: 1591722.14 | C29: =B29/'Pie Chart'!$O$30 -> 958868.759 | D29: =C29/'Pie Chart'!$O$31 -> 799057.2992
A30: GREENE | B30: 446416.9 | C30: =B30/'Pie Chart'!$O$30 -> 268925.8434 | D30: =C30/'Pie Chart'!$O$31 -> 224104.8695
A31: HAMILTON | B31: 1965815.47 | C31: =B31/'Pie Chart'!$O$30 -> 1184226.187 | D31: =C31/'Pie Chart'!$O$31 -> 986855.1556
A32: HANCOCK | B32: 530485.39 | C32: =B32/'Pie Chart'!$O$30 -> 319569.512 | D32: =C32/'Pie Chart'!$O$31 -> 266307.9267
A33: HARRISON | B33: 531672.37 | C33: =B33/'Pie Chart'!$O$30 -> 320284.5602 | D33: =C33/'Pie Chart'!$O$31 -> 266903.8002
A34: HENDRICKS | B34: 1503373.21 | C34: =B34/'Pie Chart'!$O$30 -> 905646.512 | D34: =C34/'Pie Chart'!$O$31 -> 754705.4267
A35: HENRY | B35: 729273.74 | C35: =B35/'Pie Chart'!$O$30 -> 439321.5301 | D35: =C35/'Pie Chart'!$O$31 -> 366101.2751
A36: HOWARD | B36: 1930672.21 | C36: =B36/'Pie Chart'!$O$30 -> 1163055.548 | D36: =C36/'Pie Chart'!$O$31 -> 969212.9568
A37: HUNTINGTON | B37: 558657.11 | C37: =B37/'Pie Chart'!$O$30 -> 336540.4277 | D37: =C37/'Pie Chart'!$O$31 -> 280450.3564
A38: JACKSON | B38: 943830.35 | C38: =B38/'Pie Chart'!$O$30 -> 568572.5 | D38: =C38/'Pie Chart'!$O$31 -> 473810.4167
A39: JASPER | B39: 534153.63 | C39: =B39/'Pie Chart'!$O$30 -> 321779.2952 | D39: =C39/'Pie Chart'!$O$31 -> 268149.4127
A40: JAY | B40: 364964.83 | C40: =B40/'Pie Chart'!$O$30 -> 219858.3313 | D40: =C40/'Pie Chart'!$O$31 -> 183215.2761
A41: JEFFERSON | B41: 594812.54 | C41: =B41/'Pie Chart'!$O$30 -> 358320.8072 | D41: =C41/'Pie Chart'!$O$31 -> 298600.6727
A42: JENNINGS | B42: 566352.94 | C42: =B42/'Pie Chart'!$O$30 -> 341176.4699 | D42: =C42/'Pie Chart'!$O$31 -> 284313.7249
A43: JOHNSON | B43: 1549187.2 | C43: =B43/'Pie Chart'!$O$30 -> 933245.3012 | D43: =C43/'Pie Chart'!$O$31 -> 777704.4177
A44: KNOX | B44: 626789.2 | C44: =B44/'Pie Chart'!$O$30 -> 377583.8554 | D44: =C44/'Pie Chart'!$O$31 -> 314653.2129
A45: KOSCIUSKO | B45: 1122732.83 | C45: =B45/'Pie Chart'!$O$30 -> 676345.0783 | D45: =C45/'Pie Chart'!$O$31 -> 563620.8986
A46: LAGRANGE | B46: 155773.15 | C46: =B46/'Pie Chart'!$O$30 -> 93839.24699 | D46: =C46/'Pie Chart'!$O$31 -> 78199.37249
A47: LAKE | B47: 10086131.11 | C47: =B47/'Pie Chart'!$O$30 -> 6075982.596 | D47: =C47/'Pie Chart'!$O$31 -> 5063318.83
A48: LAPORTE | B48: 2161242.76 | C48: =B48/'Pie Chart'!$O$30 -> 1301953.47 | D48: =C48/'Pie Chart'!$O$31 -> 1084961.225
A49: LAWRENCE | B49: 752832.83 | C49: =B49/'Pie Chart'!$O$30 -> 453513.753 | D49: =C49/'Pie Chart'!$O$31 -> 377928.1275
A50: MADISON | B50: 2294416.64 | C50: =B50/'Pie Chart'!$O$30 -> 1382178.699 | D50: =C50/'Pie Chart'!$O$31 -> 1151815.582
A51: MARION | B51: 21687110.11 | C51: =B51/'Pie Chart'!$O$30 -> 13064524.16 | D51: =C51/'Pie Chart'!$O$31 -> 10887103.47
A52: MARSHALL | B52: 909663.01 | C52: =B52/'Pie Chart'!$O$30 -> 547989.7651 | D52: =C52/'Pie Chart'!$O$31 -> 456658.1376
A53: MARTIN | B53: 146248.03 | C53: =B53/'Pie Chart'!$O$30 -> 88101.22289 | D53: =C53/'Pie Chart'!$O$31 -> 73417.68574
A54: MIAMI | B54: 520743.5 | C54: =B54/'Pie Chart'!$O$30 -> 313700.9036 | D54: =C54/'Pie Chart'!$O$31 -> 261417.4197
A55: MONROE | B55: 1566288.26 | C55: =B55/'Pie Chart'!$O$30 -> 943547.1446 | D55: =C55/'Pie Chart'!$O$31 -> 786289.2871
A56: MONTGOMERY | B56: 696746.85 | C56: =B56/'Pie Chart'!$O$30 -> 419727.0181 | D56: =C56/'Pie Chart'!$O$31 -> 349772.5151
A57: MORGAN | B57: 1048816.42 | C57: =B57/'Pie Chart'!$O$30 -> 631817.1205 | D57: =C57/'Pie Chart'!$O$31 -> 526514.2671
A58: NEWTON | B58: 74386.34 | C58: =B58/'Pie Chart'!$O$30 -> 44811.04819 | D58: =C58/'Pie Chart'!$O$31 -> 37342.54016
A59: NOBLE | B59: 727299.45 | C59: =B59/'Pie Chart'!$O$30 -> 438132.1988 | D59: =C59/'Pie Chart'!$O$31 -> 365110.1657
A60: OHIO | B60: 64325.61 | C60: =B60/'Pie Chart'!$O$30 -> 38750.36747 | D60: =C60/'Pie Chart'!$O$31 -> 32291.97289
A61: ORANGE | B61: 377228.42 | C61: =B61/'Pie Chart'!$O$30 -> 227246.0361 | D61: =C61/'Pie Chart'!$O$31 -> 189371.6968
A62: OWEN | B62: 238746.22 | C62: =B62/'Pie Chart'!$O$30 -> 143823.0241 | D62: =C62/'Pie Chart'!$O$31 -> 119852.5201
A63: PARKE | B63: 160963.67 | C63: =B63/'Pie Chart'!$O$30 -> 96966.06627 | D63: =C63/'Pie Chart'!$O$31 -> 80805.05522
A64: PERRY | B64: 272539.58 | C64: =B64/'Pie Chart'!$O$30 -> 164180.4699 | D64: =C64/'Pie Chart'!$O$31 -> 136817.0582
A65: PIKE | B65: 112347.07 | C65: =B65/'Pie Chart'!$O$30 -> 67678.95783 | D65: =C65/'Pie Chart'!$O$31 -> 56399.13153
A66: PORTER | B66: 1905737.93 | C66: =B66/'Pie Chart'!$O$30 -> 1148034.898 | D66: =C66/'Pie Chart'!$O$31 -> 956695.748
A67: POSEY | B67: 165267.55 | C67: =B67/'Pie Chart'!$O$30 -> 99558.76506 | D67: =C67/'Pie Chart'!$O$31 -> 82965.63755
A68: PULASKI | B68: 141800.54 | C68: =B68/'Pie Chart'!$O$30 -> 85422.01205 | D68: =C68/'Pie Chart'!$O$31 -> 71185.01004
A69: PUTNAM | B69: 494313.3 | C69: =B69/'Pie Chart'!$O$30 -> 297779.0964 | D69: =C69/'Pie Chart'!$O$31 -> 248149.247
A70: RANDOLPH | B70: 326358.63 | C70: =B70/'Pie Chart'!$O$30 -> 196601.5843 | D70: =C70/'Pie Chart'!$O$31 -> 163834.6536
A71: RIPLEY | B71: 549296.65 | C71: =B71/'Pie Chart'!$O$30 -> 330901.5964 | D71: =C71/'Pie Chart'!$O$31 -> 275751.3303
A72: RUSH | B72: 195567.01 | C72: =B72/'Pie Chart'!$O$30 -> 117811.4518 | D72: =C72/'Pie Chart'!$O$31 -> 98176.20984
A73: SCOTT | B73: 598920.03 | C73: =B73/'Pie Chart'!$O$30 -> 360795.1988 | D73: =C73/'Pie Chart'!$O$31 -> 300662.6657
A74: SHELBY | B74: 683078.26 | C74: =B74/'Pie Chart'!$O$30 -> 411492.9277 | D74: =C74/'Pie Chart'!$O$31 -> 342910.7731
A75: SPENCER | B75: 224193.04 | C75: =B75/'Pie Chart'!$O$30 -> 135056.0482 | D75: =C75/'Pie Chart'!$O$31 -> 112546.7068
A76: SAINT JOSEPH | B76: 4740964.21 | C76: =B76/'Pie Chart'!$O$30 -> 2856002.536 | D76: =C76/'Pie Chart'!$O$31 -> 2380002.113
A77: STARKE | B77: 397358.15 | C77: =B77/'Pie Chart'!$O$30 -> 239372.3795 | D77: =C77/'Pie Chart'!$O$31 -> 199476.9829
A78: STEUBEN | B78: 675642.86 | C78: =B78/'Pie Chart'!$O$30 -> 407013.7711 | D78: =C78/'Pie Chart'!$O$31 -> 339178.1426
A79: SULLIVAN | B79: 255734.1 | C79: =B79/'Pie Chart'!$O$30 -> 154056.6867 | D79: =C79/'Pie Chart'!$O$31 -> 128380.5723
A80: SWITZERLAND | B80: 31898.01 | C80: =B80/'Pie Chart'!$O$30 -> 19215.66867 | D80: =C80/'Pie Chart'!$O$31 -> 16013.05723
A81: TIPPECANOE | B81: 2933734.84 | C81: =B81/'Pie Chart'!$O$30 -> 1767310.145 | D81: =C81/'Pie Chart'!$O$31 -> 1472758.454
A82: TIPTON | B82: 139171.33 | C82: =B82/'Pie Chart'!$O$30 -> 83838.1506 | D82: =C82/'Pie Chart'!$O$31 -> 69865.1255
A83: UNION | B83: 81061.89 | C83: =B83/'Pie Chart'!$O$30 -> 48832.46386 | D83: =C83/'Pie Chart'!$O$31 -> 40693.71988
A84: VANDERBURGH | B84: 2668172.33 | C84: =B84/'Pie Chart'!$O$30 -> 1607332.729 | D84: =C84/'Pie Chart'!$O$31 -> 1339443.941
A85: VERMILLION | B85: 297690.84 | C85: =B85/'Pie Chart'!$O$30 -> 179331.8313 | D85: =C85/'Pie Chart'!$O$31 -> 149443.1928
A86: VIGO | B86: 1977613.1 | C86: =B86/'Pie Chart'!$O$30 -> 1191333.193 | D86: =C86/'Pie Chart'!$O$31 -> 992777.6606
A87: WABASH | B87: 596400.47 | C87: =B87/'Pie Chart'!$O$30 -> 359277.3916 | D87: =C87/'Pie Chart'!$O$31 -> 299397.8263
A88: WARREN | B88: 50875.94 | C88: =B88/'Pie Chart'!$O$30 -> 30648.15663 | D88: =C88/'Pie Chart'!$O$31 -> 25540.13052
A89: WARRICK | B89: 626588.15 | C89: =B89/'Pie Chart'!$O$30 -> 377462.741 | D89: =C89/'Pie Chart'!$O$31 -> 314552.2841
A90: WASHINGTON | B90: 346054.23 | C90: =B90/'Pie Chart'!$O$30 -> 208466.4036 | D90: =C90/'Pie Chart'!$O$31 -> 173722.003
A91: WAYNE | B91: 1351511.44 | C91: =B91/'Pie Chart'!$O$30 -> 814163.5181 | D91: =C91/'Pie Chart'!$O$31 -> 678469.5984
A92: WELLS | B92: 376023.8 | C92: =B92/'Pie Chart'!$O$30 -> 226520.3614 | D92: =C92/'Pie Chart'!$O$31 -> 188766.9679
A93: WHITE | B93: 472341.06 | C93: =B93/'Pie Chart'!$O$30 -> 284542.8072 | D93: =C93/'Pie Chart'!$O$31 -> 237119.006
A94: WHITLEY | B94: 413337.87 | C94: =B94/'Pie Chart'!$O$30 -> 248998.7169 | D94: =C94/'Pie Chart'!$O$31 -> 207498.9307
A95: All | B95: 111247518.8 | C95: =B95/'Pie Chart'!$O$30 -> 67016577.61 | D95: =C95/'Pie Chart'!$O$31 -> 55847148.01

Sheet School Meals (hidden)
A1: CountyName | B1: Sum of FreeBreakfasts | C1: Sum of ReduLunches | D1: Sum of FreeLunches | E1: Sum of ReducedBreakfasts | F1: Total Meals
A2: Adams | B2: 91895 | C2: 64175 | D2: 223900 | E2: 14390 | F2: 394360
A3: Allen | B3: 1884833 | C3: 720294 | D3: 3985248 | E3: 168509 | F3: 6758884
A4: Bartholomew | B4: 286112 | C4: 125414 | D4: 585378 | E4: 46174 | F4: 1043078
A5: Benton | B5: 44094 | C5: 25964 | D5: 110643 | E5: 6039 | F5: 186740
A6: Blackford | B6: 59838 | C6: 24531 | D6: 127291 | E6: 4433 | F6: 216093
A7: Boone | B7: 138259 | C7: 79187 | D7: 294277 | E7: 23370 | F7: 535093
A8: Brown | B8: 65678 | C8: 39458 | D8: 124199 | E8: 17034 | F8: 246369
A9: Carroll | B9: 61644 | C9: 44708 | D9: 141440 | E9: 11852 | F9: 259644
A10: Cass | B10: 152603 | C10: 89649 | D10: 444456 | E10: 18427 | F10: 705135
A11: Clark | B11: 576009 | C11: 232811 | D11: 1066089 | E11: 87891 | F11: 1962800
A12: Clay | B12: 140637 | C12: 71022 | D12: 267427 | E12: 23141 | F12: 502227
A13: Clinton | B13: 164699 | C13: 79965 | D13: 436344 | E13: 16261 | F13: 697269
A14: Crawford | B14: 79761 | C14: 25193 | D14: 116779 | E14: 14880 | F14: 236613
A15: Daviess | B15: 116935 | C15: 51267 | D15: 271710 | E15: 13217 | F15: 453129
A16: Dearborn | B16: 180671 | C16: 75800 | D16: 374018 | E16: 19121 | F16: 649610
A17: Decatur | B17: 128237 | C17: 65213 | D17: 258724 | E17: 18340 | F17: 470514
A18: DeKalb | B18: 160205 | C18: 111000 | D18: 384256 | E18: 32090 | F18: 687551
A19: Delaware | B19: 572024 | C19: 173694 | D19: 1120595 | E19: 46375 | F19: 1912688
A20: Dubois | B20: 133725 | C20: 86815 | D20: 266122 | E20: 28779 | F20: 515441
A21: Elkhart | B21: 1267516 | C21: 529494 | D21: 2631500 | E21: 129847 | F21: 4558357
A22: Fayette | B22: 159240 | C22: 42280 | D22: 321304 | E22: 11532 | F22: 534356
A23: Floyd | B23: 279347 | C23: 102184 | D23: 669203 | E23: 20668 | F23: 1071402
A24: Fountain | B24: 84202 | C24: 35610 | D24: 171745 | E24: 10834 | F24: 302391
A25: Franklin | B25: 47300 | C25: 33309 | D25: 134871 | E25: 6308 | F25: 221788
A26: Fulton | B26: 57971 | C26: 33286 | D26: 156204 | E26: 7661 | F26: 255122
A27: Gibson | B27: 87205 | C27: 64625 | D27: 219389 | E27: 13762 | F27: 384981
A28: Grant | B28: 338252 | C28: 122345 | D28: 772821 | E28: 27133 | F28: 1260551
A29: Greene | B29: 135718 | C29: 70047 | D29: 291074 | E29: 21392 | F29: 518231
A30: Hamilton | B30: 287884 | C30: 332663 | D30: 1001916 | E30: 47143 | F30: 1669606
A31: Hancock | B31: 82440 | C31: 106009 | D31: 384210 | E31: 14716 | F31: 587375
A32: Harrison | B32: 137013 | C32: 81760 | D32: 305699 | E32: 24188 | F32: 548660
A33: Hendricks | B33: 259923 | C33: 243045 | D33: 744701 | E33: 47785 | F33: 1295454
A34: Henry | B34: 254986 | C34: 97289 | D34: 514161 | E34: 27825 | F34: 894261
A35: Howard | B35: 329844 | C35: 139046 | D35: 831509 | E35: 26189 | F35: 1326588
A36: Huntington | B36: 143706 | C36: 78198 | D36: 305657 | E36: 18350 | F36: 545911
A37: Jackson | B37: 204056 | C37: 92210 | D37: 430334 | E37: 23642 | F37: 750242
A38: Jasper | B38: 116293 | C38: 61526 | D38: 243009 | E38: 20910 | F38: 441738
A39: Jay | B39: 93836 | C39: 59451 | D39: 226525 | E39: 10766 | F39: 390578
A40: Jefferson | B40: 131135 | C40: 56337 | D40: 282240 | E40: 17807 | F40: 487519
A41: Jennings | B41: 217869 | C41: 82952 | D41: 354276 | E41: 38978 | F41: 694075
A42: Johnson | B42: 435275 | C42: 310485 | D42: 1062897 | E42: 74721 | F42: 1883378
A43: Knox | B43: 204252 | C43: 57755 | D43: 366626 | E43: 19596 | F43: 648229
A44: Kosciusko | B44: 368426 | C44: 214714 | D44: 832899 | E44: 56308 | F44: 1472347
A45: LaGrange | B45: 134575 | C45: 160104 | D45: 321150 | E45: 25452 | F45: 641281
A46: Lake | B46: 3552027 | C46: 784603 | D46: 6465689 | E46: 276263 | F46: 11078582
A47: LaPorte | B47: 548881 | C47: 177809 | D47: 1124689 | E47: 65536 | F47: 1916915
A48: Lawrence | B48: 182485 | C48: 93640 | D48: 398908 | E48: 28515 | F48: 703548
A49: Madison | B49: 641456 | C49: 211651 | D49: 1363378 | E49: 49025 | F49: 2265510
A50: Marion | B50: 8513124 | C50: 1758538 | D50: 13410817 | E50: 889328 | F50: 24571807
A51: Marshall | B51: 185703 | C51: 120497 | D51: 487949 | E51: 22810 | F51: 816959
A52: Martin | B52: 35324 | C52: 19954 | D52: 78711 | E52: 6210 | F52: 140199
A53: Miami | B53: 192082 | C53: 91076 | D53: 413593 | E53: 27307 | F53: 724058
A54: Monroe | B54: 278273 | C54: 118479 | D54: 613480 | E54: 30189 | F54: 1040421
A55: Montgomery | B55: 190173 | C55: 71276 | D55: 358197 | E55: 24683 | F55: 644329
A56: Morgan | B56: 259323 | C56: 141894 | D56: 564195 | E56: 45494 | F56: 1010906
A57: Newton | B57: 65920 | C57: 28034 | D57: 143130 | E57: 8105 | F57: 245189
A58: Noble | B58: 143884 | C58: 132758 | D58: 514247 | E58: 20105 | F58: 810994
A59: Ohio | B59: 13620 | C59: 10529 | D59: 37471 | E59: 2776 | F59: 64396
A60: Orange | B60: 119867 | C60: 48197 | D60: 215121 | E60: 20648 | F60: 403833
A61: Owen | B61: 77477 | C61: 32349 | D61: 160268 | E61: 10134 | F61: 280228
A62: Parke | B62: 88989 | C62: 27776 | D62: 152883 | E62: 11111 | F62: 280759
A63: Perry | B63: 84992 | C63: 34580 | D63: 162479 | E63: 10612 | F63: 292663
A64: Pike | B64: 38798 | C64: 19882 | D64: 84517 | E64: 7800 | F64: 150997
A65: Porter | B65: 479563 | C65: 281544 | D65: 1090151 | E65: 92027 | F65: 1943285
A66: Posey | B66: 65323 | C66: 34071 | D66: 146416 | E66: 6638 | F66: 252448
A67: Pulaski | B67: 45713 | C67: 32380 | D67: 122934 | E67: 8309 | F67: 209336
A68: Putnam | B68: 185555 | C68: 85938 | D68: 355314 | E68: 30533 | F68: 657340
A69: Randolph | B69: 131598 | C69: 65497 | D69: 293287 | E69: 17006 | F69: 507388
A70: Ripley | B70: 124725 | C70: 69620 | D70: 245667 | E70: 22542 | F70: 462554
A71: Rush | B71: 63839 | C71: 36819 | D71: 162222 | E71: 8496 | F71: 271376
A72: Saint Joseph | B72: 1445292 | C72: 578303 | D72: 3081399 | E72: 164760 | F72: 5269754
A73: Scott | B73: 131254 | C73: 45654 | D73: 287369 | E73: 16173 | F73: 480450
A74: Shelby | B74: 182961 | C74: 97030 | D74: 393582 | E74: 25079 | F74: 698652
A75: Spencer | B75: 69482 | C75: 35896 | D75: 151405 | E75: 10555 | F75: 267338
A76: Starke | B76: 182367 | C76: 55953 | D76: 276857 | E76: 29521 | F76: 544698
A77: Steuben | B77: 98055 | C77: 67112 | D77: 247813 | E77: 18149 | F77: 431129
A78: Sullivan | B78: 96056 | C78: 45346 | D78: 184768 | E78: 14542 | F78: 340712
A79: Switzerland | B79: 54708 | C79: 18242 | D79: 92419 | E79: 8429 | F79: 173798
A80: Tippecanoe | B80: 445144 | C80: 187959 | D80: 1170484 | E80: 33366 | F80: 1836953
A81: Tipton | B81: 37738 | C81: 32166 | D81: 111496 | E81: 5667 | F81: 187067
A82: Union | B82: 37124 | C82: 23730 | D82: 80218 | E82: 7367 | F82: 148439
A83: Vanderburgh | B83: 761328 | C83: 340818 | D83: 1781897 | E83: 72688 | F83: 2956731
A84: Vermillion | B84: 89772 | C84: 38956 | D84: 159872 | E84: 18070 | F84: 306670
A85: Vigo | B85: 653367 | C85: 168397 | D85: 1135357 | E85: 61292 | F85: 2018413
A86: Wabash | B86: 162528 | C86: 81139 | D86: 337121 | E86: 17238 | F86: 598026
A87: Warren | B87: 27253 | C87: 16218 | D87: 55029 | E87: 5376 | F87: 103876
A88: Warrick | B88: 143925 | C88: 109474 | D88: 333525 | E88: 26318 | F88: 613242
A89: Washington | B89: 118564 | C89: 56074 | D89: 271225 | E89: 17541 | F89: 463404
A90: Wayne | B90: 422761 | C90: 129292 | D90: 816807 | E90: 34938 | F90: 1403798
A91: Wells | B91: 38324 | C91: 53459 | D91: 194093 | E91: 2534 | F91: 288410
A92: White | B92: 105284 | C92: 81255 | D92: 280871 | E92: 20591 | F92: 488001
A93: Whitley | B93: 67414 | C93: 58579 | D93: 164216 | E93: 17943 | F93: 308152
A94: All | B94: =SUM(B2:B93) -> 32575538 | C94: =SUM(C2:C93) -> 12243327 | D94: 64948352 | E94: 3724175 | F94: 113491392

Sheet Summer Meals (hidden)
A2: CountyNme | B2: Sum of Breakfast | C2: Sum of Lunch | D2: Sum of SUPPER | E2: Total Meals
A3: Adams | B3: 7849 | C3: 17232 | D3: 609 | E3: =SUM(B3:D3) -> 25690
A4: Allen | B4: 33736 | C4: 105373 | D4: 24884 | E4: =SUM(B4:D4) -> 163993
A5: Bartholomew | B5: 13580 | C5: 26859 | D5: 0 | E5: 40439
A6: Benton
A7: Blackford | B7: 2817 | C7: 0 | D7: 0 | E7: 2817
A8: Boone | B8: 2781 | C8: 2961 | D8: 0 | E8: 5742
A9: Brown | B9: 2374 | C9: 1899 | D9: 2376 | E9: 6649
A10: Carroll | B10: 0 | C10: 805 | D10: 0 | E10: 805
A11: Cass | B11: 574 | C11: 774 | D11: 0 | E11: 1348
A12: Clark | B12: 7468 | C12: 20893 | D12: 0 | E12: 28361
A13: Clay | B13: 2178 | C13: 3448 | D13: 97 | E13: 5723
A14: Clinton | B14: 5746 | C14: 5570 | D14: 0 | E14: 11316
A15: Crawford | B15: 3899 | C15: 6137 | D15: 0 | E15: 10036
A16: Daviess | B16: 0 | C16: 4020 | D16: 0 | E16: 4020
A17: Dearborn | B17: 0 | C17: 892 | D17: 0 | E17: 892
A18: Decatur | B18: 2848 | C18: 7140 | D18: 1154 | E18: 11142
A19: DeKalb | B19: 6734 | C19: 25930 | D19: 0 | E19: 32664
A20: Delaware | B20: 7990 | C20: 20575 | D20: 0 | E20: 28565
A21: Dubois | B21: 0 | C21: 1781 | D21: 0 | E21: 1781
A22: Elkhart | B22: 28790 | C22: 73664 | D22: 0 | E22: 102454
A23: Fayette | B23: 4769 | C23: 18200 | D23: 0 | E23: 22969
A24: Floyd | B24: 5 | C24: 17372 | D24: 0 | E24: 17377
A25: Fountain | B25: 0 | C25: 1678 | D25: 0 | E25: 1678
A26: Franklin
A27: Fulton | B27: 2195 | C27: 3490 | D27: 0 | E27: 5685
A28: Gibson | B28: 3253 | C28: 12244 | D28: 0 | E28: 15497
A29: Grant | B29: 6647 | C29: 20388 | D29: 1620 | E29: 28655
A30: Greene | B30: 0 | C30: 4981 | D30: 0 | E30: 4981
A31: Hamilton | B31: 426 | C31: 355 | D31: 426 | E31: 1207
A32: Hancock
A33: Harrison
A34: Hendricks
A35: Henry | B35: 638 | C35: 3390 | D35: 0 | E35: 4028
A36: Howard | B36: 318 | C36: 11848 | D36: 0 | E36: 12166
A37: Huntington | B37: 7480 | C37: 17422 | D37: 1253 | E37: 26155
A38: Jackson | B38: 1827 | C38: 8073 | D38: 0 | E38: 9900
A39: Jasper
A40: Jay | B40: 0 | C40: 8577 | D40: 0 | E40: 8577
A41: Jefferson
A42: Jennings
A43: Johnson | B43: 4071 | C43: 30106 | D43: 0 | E43: 34177
A44: Knox | B44: 1669 | C44: 1258 | D44: 587 | E44: 3514
A45: Kosciusko | B45: 14154 | C45: 44298 | D45: 0 | E45: 58452
A46: LaGrange | B46: 1812 | C46: 8061 | D46: 0 | E46: 9873
A47: Lake | B47: 133433 | C47: 253721 | D47: 2208 | E47: 389362
A48: LaPorte | B48: 19133 | C48: 37437 | D48: 0 | E48: 56570
A49: Lawrence | B49: 3974 | C49: 13753 | D49: 1941 | E49: 19668
A50: Madison | B50: 2993 | C50: 10813 | D50: 0 | E50: 13806
A51: Marion | B51: 210732 | C51: 535317 | D51: 6418 | E51: 752467
A52: Marshall | B52: 7670 | C52: 22964 | D52: 0 | E52: 30634
A53: Martin
A54: Miami | B54: 2750 | C54: 12171 | D54: 0 | E54: 14921
A55: Monroe | B55: 14850 | C55: 10524 | D55: 4062 | E55: 29436
A56: Montgomery | B56: 0 | C56: 2880 | D56: 0 | E56: 2880
A57: Morgan | B57: 1808 | C57: 19217 | D57: 0 | E57: 21025
A58: Newton | B58: 2439 | C58: 2988 | D58: 0 | E58: 5427
A59: Noble | B59: 2695 | C59: 11109 | D59: 125 | E59: 13929
A60: Ohio
A61: Orange | B61: 3797 | C61: 5045 | D61: 0 | E61: 8842
A62: Owen | B62: 589 | C62: 3613 | D62: 0 | E62: 4202
A63: Parke | B63: 7705 | C63: 8595 | D63: 7644 | E63: 23944
A64: Perry | B64: 649 | C64: 4155 | D64: 0 | E64: 4804
A65: Pike
A66: Porter | B66: 8573 | C66: 17586 | D66: 0 | E66: 26159
A67: Posey | B67: 0 | C67: 1100 | D67: 0 | E67: 1100
A68: Pulaski | B68: 0 | C68: 349 | D68: 0 | E68: 349
A69: Putnam | B69: 5717 | C69: 7848 | D69: 0 | E69: 13565
A70: Randolph | B70: 0 | C70: 9020 | D70: 0 | E70: 9020
A71: Ripley
A72: Rush | B72: 8780 | C72: 28430 | D72: 1592 | E72: 38802
A73: Saint Joseph | B73: 61536 | C73: 126646 | D73: 4398 | E73: 192580
A74: Scott | B74: 1945 | C74: 2353 | D74: 648 | E74: 4946
A75: Shelby | B75: 2402 | C75: 24272 | D75: 0 | E75: 26674
A76: Spencer
A77: Starke | B77: 4226 | C77: 6069 | D77: 0 | E77: 10295
A78: Steuben | B78: 7224 | C78: 9249 | D78: 0 | E78: 16473
A79: Sullivan | B79: 0 | C79: 1999 | D79: 0 | E79: 1999
A80: Switzerland
A81: Tippecanoe | B81: 10841 | C81: 38437 | D81: 2542 | E81: 51820
A82: Tipton
A83: Union
A84: Vanderburgh | B84: 1545 | C84: 41629 | D84: 0 | E84: =SUM(B84:D84) -> 43174
A85: Vermillion | B85: 0 | C85: 4960 | D85: 0 | E85: 4960
A86: Vigo | B86: 14906 | C86: 19853 | D86: 2139 | E86: 36898
A87: Wabash | B87: 7900 | C87: 26484 | D87: 416 | E87: 34800
A88: Warren
A89: Warrick | B89: 2019 | C89: 8740 | D89: 162 | E89: 10921
A90: Washington
A91: Wayne | B91: 13497 | C91: 35058 | D91: 349 | E91: 48904
A92: Wells | B92: 0 | C92: 2447 | D92: 0 | E92: 2447
A93: White | B93: 0 | C93: 3376 | D93: 0 | E93: 3376
A94: Whitley | B94: 0 | C94: 5597 | D94: 0 | E94: 5597
A95: All | B95: =SUM(B3:B94) -> 744956 | C95: =SUM(C3:C94) -> 1913498 | D95: 67650 | E95: 2726104

Sheet Feeding America Food Bank (hidden)
A1: Food Bank | B1: County | C1: Total Pounds | D1: Federal Pounds | E1: Non Federal Pounds | F1: TEFAP | G1: CSFP | H1: Federal Meals | I1: Non-Federal Meals
A2: Community Harvest Food Bank of Northeast Indiana | B2: ADAMS | C2: 413125 | D2: =F2+G2 -> 58050 | E2: =C2-D2 -> 355075 | F2: 58050 | H2: =D2/'Pie Chart'!$O$31 -> 48375 | I2: =E2/'Pie Chart'!$O$31 -> 295895.8333
A3: Community Harvest Food Bank of Northeast Indiana | B3: ALLEN | C3: 6322407 | D3: =F3+G3 -> 602948 | E3: 5719459 | F3: 602948 | H3: =D3/'Pie Chart'!$O$31 -> 502456.6667 | I3: =E3/'Pie Chart'!$O$31 -> 4766215.833
A4: Gleaners Food Bank | B4: BARTHOLOMEW | C4: 406772 | D4: 143398 | E4: 263374 | F4: 140658 | G4: 2740 | H4: =D4/'Pie Chart'!$O$31 -> 119498.3333 | I4: =E4/'Pie Chart'!$O$31 -> 219478.3333
A5: Food Finders | B5: BENTON | C5: 74755 | D5: 13393 | E5: 61362 | F5: 13393 | H5: =D5/'Pie Chart'!$O$31 -> 11160.83333 | I5: =E5/'Pie Chart'!$O$31 -> 51135
A6: SH FB of East Central | B6: BLACKFORD | C6: 386135 | D6: 71272 | E6: 314863 | F6: 30176 | G6: 41096 | H6: =D6/'Pie Chart'!$O$31 -> 59393.33333 | I6: =E6/'Pie Chart'!$O$31 -> 262385.8333
A7: Gleaners Food Bank | B7: BOONE | C7: 348086 | D7: 83025 | E7: 265061 | F7: 83025 | H7: =D7/'Pie Chart'!$O$31 -> 69187.5 | I7: =E7/'Pie Chart'!$O$31 -> 220884.1667
A8: Hoosier Hills Food Bank | B8: BROWN | C8: 174133 | D8: 27430 | E8: 146703 | F8: 27430 | H8: =D8/'Pie Chart'!$O$31 -> 22858.33333 | I8: =E8/'Pie Chart'!$O$31 -> 122252.5
A9: Food Finders | B9: CARROLL | C9: 162740 | D9: 29254 | E9: 133486 | F9: 29254 | H9: =D9/'Pie Chart'!$O$31 -> 24378.33333 | I9: =E9/'Pie Chart'!$O$31 -> 111238.3333
A10: Food Finders | B10: CASS | C10: 394615 | D10: 74873 | E10: 319742 | F10: 74873 | H10: =D10/'Pie Chart'!$O$31 -> 62394.16667 | I10: =E10/'Pie Chart'!$O$31 -> 266451.6667
A11: Dare To Care ( Louisville) | B11: CLARK | C11: 1365610 | D11: 214777 | E11: 1150833 | F11: 214777 | H11: =D11/'Pie Chart'!$O$31 -> 178980.8333 | I11: =E11/'Pie Chart'!$O$31 -> 959027.5
A12: Catholic Charities | B12: CLAY | C12: 248200 | D12: 58181 | E12: 190019 | F12: 58181 | H12: =D12/'Pie Chart'!$O$31 -> 48484.16667 | I12: =E12/'Pie Chart'!$O$31 -> 158349.1667
A13: Food Finders | B13: CLINTON | C13: 227653 | D13: 56591 | E13: 171062 | F13: 56591 | H13: =D13/'Pie Chart'!$O$31 -> 47159.16667 | I13: =E13/'Pie Chart'!$O$31 -> 142551.6667
A14: Dare To Care ( Louisville) | B14: CRAWFORD | C14: 332586 | D14: 134753 | E14: 197833 | F14: 30406 | G14: 104347 | H14: =D14/'Pie Chart'!$O$31 -> 112294.1667 | I14: =E14/'Pie Chart'!$O$31 -> 164860.8333
A15: Tri State Food Bank | B15: DAVIESS | C15: 344770 | D15: 93617 | E15: 251153 | F15: 86792 | G15: 6825 | H15: =D15/'Pie Chart'!$O$31 -> 78014.16667 | I15: =E15/'Pie Chart'!$O$31 -> 209294.1667
A16: Community Harvest Food Bank of Northeast Indiana | B16: DE KALB | C16: 746149 | D16: 56211 | E16: 689938 | F16: 56211 | H16: =D16/'Pie Chart'!$O$31 -> 46842.5 | I16: =E16/'Pie Chart'!$O$31 -> 574948.3333
A17: Freestore Food Bank | B17: DEARBORN | C17: 488499 | D17: 62926 | E17: 425573 | F17: 62926 | H17: =D17/'Pie Chart'!$O$31 -> 52438.33333 | I17: =E17/'Pie Chart'!$O$31 -> 354644.1667
A18: Gleaners Food Bank | B18: DECATUR | C18: 246914 | D18: 71066 | E18: 175848 | F18: 71066 | H18: =D18/'Pie Chart'!$O$31 -> 59221.66667 | I18: =E18/'Pie Chart'!$O$31 -> 146540
A19: SH FB of East Central | B19: DELAWARE | C19: 1980009 | D19: 328511 | E19: 1651498 | F19: 328511 | H19: =D19/'Pie Chart'!$O$31 -> 273759.1667 | I19: =E19/'Pie Chart'!$O$31 -> 1376248.333
A20: Tri State Food Bank | B20: DUBOIS | C20: 183685 | D20: 77936 | E20: 105749 | F20: 77936 | H20: =D20/'Pie Chart'!$O$31 -> 64946.66667 | I20: =E20/'Pie Chart'!$O$31 -> 88124.16667
A21: Food Bank Of Northern Indiana | B21: ELKHART | C21: 1035392 | D21: 434245 | E21: 601147 | F21: 434245 | H21: =D21/'Pie Chart'!$O$31 -> 361870.8333 | I21: =E21/'Pie Chart'!$O$31 -> 500955.8333
A22: Gleaners Food Bank | B22: FAYETTE | C22: 222562 | D22: 72877 | E22: 149685 | F22: 72877 | H22: =D22/'Pie Chart'!$O$31 -> 60730.83333 | I22: =E22/'Pie Chart'!$O$31 -> 124737.5
A23: Dare To Care ( Louisville) | B23: FLOYD | C23: 719686 | D23: =F23+G23 -> 147057 | E23: 572629 | F23: 147057 | H23: =D23/'Pie Chart'!$O$31 -> 122547.5 | I23: =E23/'Pie Chart'!$O$31 -> 477190.8333
A24: Food Finders | B24: FOUNTAIN | C24: 202911 | D24: 31196 | E24: 171715 | F24: 31196 | H24: =D24/'Pie Chart'!$O$31 -> 25996.66667 | I24: =E24/'Pie Chart'!$O$31 -> 143095.8333
A25: Gleaners Food Bank | B25: FRANKLIN | C25: 138342 | D25: 52351 | E25: 85991 | F25: 48779 | G25: 3572 | H25: =D25/'Pie Chart'!$O$31 -> 43625.83333 | I25: =E25/'Pie Chart'!$O$31 -> 71659.16667
A26: Food Finders | B26: FULTON | C26: 137601 | D26: 35709 | E26: 101892 | F26: 35709 | H26: =D26/'Pie Chart'!$O$31 -> 29757.5 | I26: =E26/'Pie Chart'!$O$31 -> 84910
A27: Tri State Food Bank | B27: GIBSON | C27: 246126 | D27: 84730 | E27: 161396 | F27: 84730 | H27: =D27/'Pie Chart'!$O$31 -> 70608.33333 | I27: =E27/'Pie Chart'!$O$31 -> 134496.6667
A28: SH FB of East Central | B28: GRANT | C28: 2518850 | D28: 291011 | E28: 2227839 | F28: 291011 | H28: =D28/'Pie Chart'!$O$31 -> 242509.1667 | I28: =E28/'Pie Chart'!$O$31 -> 1856532.5
A29: Catholic Charities | B29: GREENE | C29: 326774 | D29: 70323 | E29: 256451 | F29: 70323 | H29: =D29/'Pie Chart'!$O$31 -> 58602.5 | I29: =E29/'Pie Chart'!$O$31 -> 213709.1667
A30: Gleaners Food Bank | B30: HAMILTON | C30: 967763 | D30: 315617 | E30: 652146 | F30: 315617 | H30: =D30/'Pie Chart'!$O$31 -> 263014.1667 | I30: =E30/'Pie Chart'!$O$31 -> 543455
A31: Gleaners Food Bank | B31: HANCOCK | C31: 307142 | D31: 97346 | E31: 209796 | F31: 97101 | G31: 245 | H31: =D31/'Pie Chart'!$O$31 -> 81121.66667 | I31: =E31/'Pie Chart'!$O$31 -> 174830
A32: Dare To Care ( Louisville) | B32: HARRISON | C32: 674007 | D32: 65571 | E32: 608436 | F32: 65571 | H32: =D32/'Pie Chart'!$O$31 -> 54642.5 | I32: =E32/'Pie Chart'!$O$31 -> 507030
A33: Gleaners Food Bank | B33: HENDRICKS | C33: 531070 | D33: 152059 | E33: 379011 | F33: 152059 | H33: =D33/'Pie Chart'!$O$31 -> 126715.8333 | I33: =E33/'Pie Chart'!$O$31 -> 315842.5
A34: SH FB of East Central | B34: HENRY | C34: 1819740 | D34: 172216 | E34: =C34-D34 -> 1647524 | F34: 172216 | H34: =D34/'Pie Chart'!$O$31 -> 143513.3333 | I34: =E34/'Pie Chart'!$O$31 -> 1372936.667
A35: Food Finders | B35: HOWARD | C35: 619661 | D35: 177979 | E35: 441682 | F35: 177979 | H35: =D35/'Pie Chart'!$O$31 -> 148315.8333 | I35: =E35/'Pie Chart'!$O$31 -> 368068.3333
A36: Community Harvest Food Bank of Northeast Indiana | B36: HUNTINGTON | C36: 415070 | D36: 46918 | E36: 368152 | F36: 46918 | H36: =D36/'Pie Chart'!$O$31 -> 39098.33333 | I36: =E36/'Pie Chart'!$O$31 -> 306793.3333
A37: Gleaners Food Bank | B37: JACKSON | C37: 293390 | D37: 99712 | E37: 193678 | F37: 95184 | G37: 4528 | H37: =D37/'Pie Chart'!$O$31 -> 83093.33333 | I37: =E37/'Pie Chart'!$O$31 -> 161398.3333
A38: Food Finders | B38: JASPER | C38: 153713 | D38: 33804 | E38: 119909 | F38: 33804 | H38: =D38/'Pie Chart'!$O$31 -> 28170 | I38: =E38/'Pie Chart'!$O$31 -> 99924.16667
A39: SH FB of East Central | B39: JAY | C39: 489843 | D39: 55338 | E39: 434505 | F39: 55338 | H39: =D39/'Pie Chart'!$O$31 -> 46115 | I39: =E39/'Pie Chart'!$O$31 -> 362087.5
A40: Gleaners Food Bank | B40: JEFFERSON | C40: 364020 | D40: 73835 | E40: 290185 | F40: 73835 | H40: =D40/'Pie Chart'!$O$31 -> 61529.16667 | I40: =E40/'Pie Chart'!$O$31 -> 241820.8333
A41: Gleaners Food Bank | B41: JENNINGS | C41: 352943 | D41: 80421 | E41: 272522 | F41: 80421 | H41: =D41/'Pie Chart'!$O$31 -> 67017.5 | I41: =E41/'Pie Chart'!$O$31 -> 227101.6667
A42: Gleaners Food Bank | B42: JOHNSON | C42: 875256 | D42: 292272 | E42: 582984 | F42: 292272 | H42: =D42/'Pie Chart'!$O$31 -> 243560 | I42: =E42/'Pie Chart'!$O$31 -> 485820
A43: Catholic Charities | B43: KNOX | C43: 236005 | D43: 180335 | E43: 55670 | F43: 77115 | G43: 103220 | H43: =D43/'Pie Chart'!$O$31 -> 150279.1667 | I43: =E43/'Pie Chart'!$O$31 -> 46391.66667
A44: Food Bank Of Northern Indiana | B44: KOSCIUSKO | C44: 446910 | D44: 102787 | E44: 344123 | F44: 102787 | H44: =D44/'Pie Chart'!$O$31 -> 85655.83333 | I44: =E44/'Pie Chart'!$O$31 -> 286769.1667
A45: Food Bank Of Northern Indiana | B45: LA PORTE | C45: 647300 | D45: 182189 | E45: 465111 | F45: 182189 | H45: =D45/'Pie Chart'!$O$31 -> 151824.1667 | I45: =E45/'Pie Chart'!$O$31 -> 387592.5
A46: Community Harvest Food Bank of Northeast Indiana | B46: LAGRANGE | C46: 517008 | D46: 191470 | E46: 325538 | F46: 191470 | H46: =D46/'Pie Chart'!$O$31 -> 159558.3333 | I46: =E46/'Pie Chart'!$O$31 -> 271281.6667
A47: Foodbank of Northwest Indiana | B47: LAKE | C47: 4231192 | D47: 1101350 | E47: 3129842 | F47: 1101350 | H47: =D47/'Pie Chart'!$O$31 -> 917791.6667 | I47: =E47/'Pie Chart'!$O$31 -> 2608201.667
A48: Hoosier Hills Food Bank | B48: LAWRENCE | C48: 539368 | D48: 104697 | E48: 434671 | F48: 104697 | H48: =D48/'Pie Chart'!$O$31 -> 87247.5 | I48: =E48/'Pie Chart'!$O$31 -> 362225.8333
A49: SH FB of East Central | B49: MADISON | C49: 2298354 | D49: 390160 | E49: 1908194 | F49: 390160 | H49: =D49/'Pie Chart'!$O$31 -> 325133.3333 | I49: =E49/'Pie Chart'!$O$31 -> 1590161.667
A50: Gleaners Food Bank | B50: MARION | C50: 14517627 | D50: 3548935 | E50: 10968692 | F50: 2789376 | G50: 759559 | H50: =D50/'Pie Chart'!$O$31 -> 2957445.833 | I50: =E50/'Pie Chart'!$O$31 -> 9140576.667
A51: Food Bank Of Northern Indiana | B51: MARSHALL | C51: 398130 | D51: 81973 | E51: 316157 | F51: 81973 | H51: =D51/'Pie Chart'!$O$31 -> 68310.83333 | I51: =E51/'Pie Chart'!$O$31 -> 263464.1667
A52: Hoosier Hills Food Bank | B52: MARTIN | C52: 71004 | D52: 53070 | E52: 17934 | F52: 18182 | G52: 34888 | H52: =D52/'Pie Chart'!$O$31 -> 44225 | I52: =E52/'Pie Chart'!$O$31 -> 14945
A53: Food Finders | B53: MIAMI | C53: 284197 | D53: 77979 | E53: 206218 | F53: 77979 | H53: =D53/'Pie Chart'!$O$31 -> 64982.5 | I53: =E53/'Pie Chart'!$O$31 -> 171848.3333
A54: Hoosier Hills Food Bank | B54: MONROE | C54: 1591171 | D54: 306380 | E54: 1284791 | F54: 306380 | H54: =D54/'Pie Chart'!$O$31 -> 255316.6667 | I54: =E54/'Pie Chart'!$O$31 -> 1070659.167
A55: Food Finders | B55: MONTGOMERY | C55: 315400 | D55: 66692 | E55: 248708 | F55: 66692 | H55: =D55/'Pie Chart'!$O$31 -> 55576.66667 | I55: =E55/'Pie Chart'!$O$31 -> 207256.6667
A56: Gleaners Food Bank | B56: MORGAN | C56: 298642 | D56: 133183 | E56: 165459 | F56: 133183 | H56: =D56/'Pie Chart'!$O$31 -> 110985.8333 | I56: =E56/'Pie Chart'!$O$31 -> 137882.5
A57: Food Finders | B57: NEWTON | C57: 158453 | D57: 22505 | E57: 135948 | F57: 22505 | H57: =D57/'Pie Chart'!$O$31 -> 18754.16667 | I57: =E57/'Pie Chart'!$O$31 -> 113290
A58: Community Harvest Food Bank of Northeast Indiana | B58: NOBLE | C58: 1055801 | D58: 81695 | E58: 974106 | F58: 81695 | H58: =D58/'Pie Chart'!$O$31 -> 68079.16667 | I58: =E58/'Pie Chart'!$O$31 -> 811755
A59: Freestore Food Bank | B59: OHIO | C59: 31994 | D59: 11405 | E59: 20589 | F59: 11405 | H59: =D59/'Pie Chart'!$O$31 -> 9504.166667 | I59: =E59/'Pie Chart'!$O$31 -> 17157.5
A60: Hoosier Hills Food Bank | B60: ORANGE | C60: 210752 | D60: 172725 | E60: 38027 | F60: 45585 | G60: 127140 | H60: =D60/'Pie Chart'!$O$31 -> 143937.5 | I60: =E60/'Pie Chart'!$O$31 -> 31689.16667
A61: Hoosier Hills Food Bank | B61: OWEN | C61: 455409 | D61: 45806 | E61: 409603 | F61: 45806 | H61: =D61/'Pie Chart'!$O$31 -> 38171.66667 | I61: =E61/'Pie Chart'!$O$31 -> 341335.8333
A62: Catholic Charities | B62: PARKE | C62: 207703 | D62: 35310 | E62: 172393 | F62: 35310 | H62: =D62/'Pie Chart'!$O$31 -> 29425 | I62: =E62/'Pie Chart'!$O$31 -> 143660.8333
A63: Tri State Food Bank | B63: PERRY | C63: 189593 | D63: 47599 | E63: 141994 | F63: 47599 | H63: =D63/'Pie Chart'!$O$31 -> 39665.83333 | I63: =E63/'Pie Chart'!$O$31 -> 118328.3333
A64: Tri State Food Bank | B64: PIKE | C64: 145308 | D64: 33963 | E64: 111345 | F64: 33963 | H64: =D64/'Pie Chart'!$O$31 -> 28302.5 | I64: =E64/'Pie Chart'!$O$31 -> 92787.5
A65: Foodbank of Northwest Indiana | B65: PORTER | C65: 737503 | D65: 274757 | E65: 462746 | F65: 274757 | H65: =D65/'Pie Chart'!$O$31 -> 228964.1667 | I65: =E65/'Pie Chart'!$O$31 -> 385621.6667
A66: Tri State Food Bank | B66: POSEY | C66: 154073 | D66: 53153 | E66: =C66-D66 -> 100920 | F66: 53153 | H66: =D66/'Pie Chart'!$O$31 -> 44294.16667 | I66: =E66/'Pie Chart'!$O$31 -> 84100
A67: Food Finders | B67: PULASKI | C67: 81799 | D67: =F67+G67 -> 21042 | E67: 60757 | F67: 21042 | H67: =D67/'Pie Chart'!$O$31 -> 17535 | I67: =E67/'Pie Chart'!$O$31 -> 50630.83333
A68: Gleaners Food Bank | B68: PUTNAM | C68: 252601 | D68: 91910 | E68: 160691 | F68: 77661 | G68: 14249 | H68: =D68/'Pie Chart'!$O$31 -> 76591.66667 | I68: =E68/'Pie Chart'!$O$31 -> 133909.1667
A69: SH FB of East Central | B69: RANDOLPH | C69: 419582 | D69: 64436 | E69: 355146 | F69: 64436 | H69: =D69/'Pie Chart'!$O$31 -> 53696.66667 | I69: =E69/'Pie Chart'!$O$31 -> 295955
A70: Gleaners Food Bank | B70: RIPLEY | C70: 287875 | D70: 68849 | E70: 219026 | F70: 68849 | H70: =D70/'Pie Chart'!$O$31 -> 57374.16667 | I70: =E70/'Pie Chart'!$O$31 -> 182521.6667
A71: Gleaners Food Bank | B71: RUSH | C71: 130150 | D71: 43753 | E71: 86397 | F71: 37940 | G71: 5813 | H71: =D71/'Pie Chart'!$O$31 -> 36460.83333 | I71: =E71/'Pie Chart'!$O$31 -> 71997.5
A72: Gleaners Food Bank | B72: SCOTT | C72: 247985 | D72: 65205 | E72: 182780 | F72: 65205 | H72: =D72/'Pie Chart'!$O$31 -> 54337.5 | I72: =E72/'Pie Chart'!$O$31 -> 152316.6667
A73: Gleaners Food Bank | B73: SHELBY | C73: 330111 | D73: 102782 | E73: 227329 | F73: 95925 | G73: 6857 | H73: =D73/'Pie Chart'!$O$31 -> 85651.66667 | I73: =E73/'Pie Chart'!$O$31 -> 189440.8333
A74: Tri State Food Bank | B74: SPENCER | C74: 50492 | D74: 44394 | E74: 6098 | F74: 44394 | H74: =D74/'Pie Chart'!$O$31 -> 36995 | I74: =E74/'Pie Chart'!$O$31 -> 5081.666667
A75: Food Bank Of Northern Indiana | B75: SAINT JOSEPH | C75: 2846162 | D75: 532583 | E75: 2313579 | F75: 532583 | H75: =D75/'Pie Chart'!$O$31 -> 443819.1667 | I75: =E75/'Pie Chart'!$O$31 -> 1927982.5
A76: Food Bank Of Northern Indiana | B76: STARKE | C76: 181320 | D76: 47542 | E76: 133778 | F76: 47542 | H76: =D76/'Pie Chart'!$O$31 -> 39618.33333 | I76: =E76/'Pie Chart'!$O$31 -> 111481.6667
A77: Community Harvest Food Bank of Northeast Indiana | B77: STEUBEN | C77: 499826 | D77: 55651 | E77: 444175 | F77: 55651 | H77: =D77/'Pie Chart'!$O$31 -> 46375.83333 | I77: =E77/'Pie Chart'!$O$31 -> 370145.8333
A78: Catholic Charities | B78: SULLIVAN | C78: 137272 | D78: 45774 | E78: 91498 | F78: 45774 | H78: =D78/'Pie Chart'!$O$31 -> 38145 | I78: =E78/'Pie Chart'!$O$31 -> 76248.33333
A79: Freestore Food Bank | B79: SWITZERLAND | C79: 63596 | D79: 25693 | E79: 37903 | F79: 25693 | H79: =D79/'Pie Chart'!$O$31 -> 21410.83333 | I79: =E79/'Pie Chart'!$O$31 -> 31585.83333
A80: Food Finders | B80: TIPPECANOE | C80: 2731473 | D80: 390503 | E80: 2340970 | F80: 390503 | H80: =D80/'Pie Chart'!$O$31 -> 325419.1667 | I80: =E80/'Pie Chart'!$O$31 -> 1950808.333
A81: Food Finders | B81: TIPTON | C81: 153308 | D81: 23666 | E81: 129642 | F81: 23666 | H81: =D81/'Pie Chart'!$O$31 -> 19721.66667 | I81: =E81/'Pie Chart'!$O$31 -> 108035
A82: Gleaners Food Bank | B82: UNION | C82: 48281 | D82: 16604 | E82: 31677 | F82: 16604 | H82: =D82/'Pie Chart'!$O$31 -> 13836.66667 | I82: =E82/'Pie Chart'!$O$31 -> 26397.5
A83: Tri State Food Bank | B83: VANDERBURGH | C83: 1695920 | D83: 539573 | E83: 1156347 | F83: 539573 | H83: =D83/'Pie Chart'!$O$31 -> 449644.1667 | I83: =E83/'Pie Chart'!$O$31 -> 963622.5
A84: Catholic Charities | B84: VERMILLION | C84: 105624 | D84: 87473 | E84: 18151 | F84: 36231 | G84: 51242 | H84: =D84/'Pie Chart'!$O$31 -> 72894.16667 | I84: =E84/'Pie Chart'!$O$31 -> 15125.83333
A85: Catholic Charities | B85: VIGO | C85: 1181219 | D85: 251364 | E85: 929855 | F85: 251364 | H85: =D85/'Pie Chart'!$O$31 -> 209470 | I85: =E85/'Pie Chart'!$O$31 -> 774879.1667
A86: SH FB of East Central | B86: WABASH | C86: 644038 | D86: 148634 | E86: 495404 | F86: 73196 | G86: 75438 | H86: =D86/'Pie Chart'!$O$31 -> 123861.6667 | I86: =E86/'Pie Chart'!$O$31 -> 412836.6667
A87: Food Finders | B87: WARREN | C87: 87749 | D87: 10634 | E87: 77115 | F87: 10634 | H87: =D87/'Pie Chart'!$O$31 -> 8861.666667 | I87: =E87/'Pie Chart'!$O$31 -> 64262.5
A88: Tri State Food Bank | B88: WARRICK | C88: 452812 | D88: 111613 | E88: 341199 | F88: 111613 | H88: =D88/'Pie Chart'!$O$31 -> 93010.83333 | I88: =E88/'Pie Chart'!$O$31 -> 284332.5
A89: Dare To Care ( Louisville) | B89: WASHINGTON | C89: 365641 | D89: 76413 | E89: 289228 | F89: 76413 | H89: =D89/'Pie Chart'!$O$31 -> 63677.5 | I89: =E89/'Pie Chart'!$O$31 -> 241023.3333
A90: Gleaners Food Bank | B90: WAYNE | C90: 591227 | D90: 214421 | E90: 376806 | F90: 214421 | H90: =D90/'Pie Chart'!$O$31 -> 178684.1667 | I90: =E90/'Pie Chart'!$O$31 -> 314005
A91: Community Harvest Food Bank of Northeast Indiana | B91: WELLS | C91: 239722 | D91: 30905 | E91: 208817 | F91: 30905 | H91: =D91/'Pie Chart'!$O$31 -> 25754.16667 | I91: =E91/'Pie Chart'!$O$31 -> 174014.1667
A92: Food Finders | B92: WHITE | C92: 282820 | D92: 37898 | E92: 244922 | F92: 37898 | H92: =D92/'Pie Chart'!$O$31 -> 31581.66667 | I92: =E92/'Pie Chart'!$O$31 -> 204101.6667
A93: Community Harvest Food Bank of Northeast Indiana | B93: WHITLEY | C93: 499363 | D93: 34041 | E93: 465322 | F93: 34041 | H93: =D93/'Pie Chart'!$O$31 -> 28367.5 | I93: =E93/'Pie Chart'!$O$31 -> 387768.3333
B94: All | C94: =SUM(C2:C93) -> 72605570 | D94: =SUM(D2:D93) -> 15624273 | E94: 56981297 | F94: 14282514 | G94: 1341759 | H94: 13020227.5 | I94: 47484414.17

Sheet Other Sources (hidden)
A1: County | B1: Sum of Other Private Food Sources | C1: Sum of Other Federal Food Sources | D1: Midwest + Other Independent FB Pounds | E1: Midwest FB Meals | F1: Second Helpings Meals | G1: Cicoa Meals | H1: CICOA Fed | I1: CICOA Meals Private | J1: SVDP Meals | K1: Meals on Wheels | L1: Second Helpings Pounds to meals
A2: Adams | B2: =SUM(E2:L2)-G2-H2 -> 0 | C2: =H2 -> 0 | E2: =D2/'Pie Chart'!$O$31 -> 0
A3: Allen | B3: =SUM(E3:L3)-G3-H3 -> 954372.5 | C3: =H3 -> 0 | D3: =14445+1130802 -> 1145247 | E3: =D3/'Pie Chart'!$O$31 -> 954372.5
A4: Bartholomew | B4: 21812.5 | C4: 0 | D4: 26175 | E4: =D4/'Pie Chart'!$O$31 -> 21812.5
A5: Benton | B5: 0 | C5: 0 | E5: =D5/'Pie Chart'!$O$31 -> 0
A6: Blackford | B6: 0 | C6: 0 | E6: =D6/'Pie Chart'!$O$31 -> 0
A7: Boone | B7: 60114 | C7: 6321 | D7: 58230 | E7: =D7/'Pie Chart'!$O$31 -> 48525 | F7: ='Second Helpings'!C5 -> 8880 | G7: =9030 -> 9030 | H7: =0.7*G7 -> 6321 | I7: =G7-H7 -> 2709
A8: Brown | B8: 35129.1 | C8: 592.9 | D8: 41850 | E8: =D8/'Pie Chart'!$O$31 -> 34875 | G8: =847 -> 847 | H8: =0.7*G8 -> 592.9 | I8: =G8-H8 -> 254.1
A9: Carroll | B9: 22175 | C9: 0 | D9: 26610 | E9: =D9/'Pie Chart'!$O$31 -> 22175
A10: Cass | B10: 19685 | C10: 0 | D10: 23622 | E10: =D10/'Pie Chart'!$O$31 -> 19685
A11: Clark | B11: 0 | C11: 0 | E11: =D11/'Pie Chart'!$O$31 -> 0
A12: Clay | B12: 17125 | C12: 0 | D12: 20550 | E12: =D12/'Pie Chart'!$O$31 -> 17125
A13: Clinton | B13: 30900 | C13: 0 | D13: 37080 | E13: =D13/'Pie Chart'!$O$31 -> 30900
A14: Crawford | B14: 17862.5 | C14: 0 | D14: 21435 | E14: =D14/'Pie Chart'!$O$31 -> 17862.5
A15: Daviess | B15: 12437.5 | C15: 0 | D15: 14925 | E15: =D15/'Pie Chart'!$O$31 -> 12437.5
A16: Dearborn | B16: 0 | C16: 0 | E16: =D16/'Pie Chart'!$O$31 -> 0
A17: Decatur | B17: 0 | C17: 0 | E17: =D17/'Pie Chart'!$O$31 -> 0
A18: Dekalb | B18: 0 | C18: 0 | E18: =D18/'Pie Chart'!$O$31 -> 0
A19: Delaware | B19: 0 | C19: 0 | E19: =D19/'Pie Chart'!$O$31 -> 0
A20: Dubois | B20: 0 | C20: 0 | E20: =D20/'Pie Chart'!$O$31 -> 0
A21: Elkhart | B21: 63837.5 | C21: 0 | D21: 76605 | E21: =D21/'Pie Chart'!$O$31 -> 63837.5
A22: Fayette | B22: 0 | C22: 0 | E22: =D22/'Pie Chart'!$O$31 -> 0
A23: Floyd | B23: 0 | C23: 0 | E23: =D23/'Pie Chart'!$O$31 -> 0
A24: Fountain | B24: 0 | C24: 0 | E24: =D24/'Pie Chart'!$O$31 -> 0
A25: Franklin | B25: 0 | C25: 0 | E25: =D25/'Pie Chart'!$O$31 -> 0
A26: Fulton | B26: 16487.5 | C26: 0 | D26: 19785 | E26: =D26/'Pie Chart'!$O$31 -> 16487.5
A27: Gibson | B27: 0 | C27: 0 | E27: =D27/'Pie Chart'!$O$31 -> 0
A28: Grant | B28: 0 | C28: 0 | E28: =D28/'Pie Chart'!$O$31 -> 0
A29: Greene | B29: 27350 | C29: 0 | D29: 32820 | E29: =D29/'Pie Chart'!$O$31 -> 27350
A30: Hamilton | B30: 356441.5667 | C30: 13396.6 | D30: 381660 | E30: =D30/'Pie Chart'!$O$31 -> 318050 | F30: ='Second Helpings'!D5 -> 13056 | G30: =19138 -> 19138 | H30: =0.7*G30 -> 13396.6 | I30: =G30-H30 -> 5741.4 | K30: =1654/'Pie Chart'!$O$31 -> 1378.333333 | L30: ='Second Helpings'!D7 -> 18215.83333
A31: Hancock | B31: 35521 | C31: 3374 | D31: 40890 | E31: =D31/'Pie Chart'!$O$31 -> 34075 | G31: =6266/1.3 -> 4820 | H31: =0.7*G31 -> 3374 | I31: =G31-H31 -> 1446
A32: Harrison | B32: 0 | C32: 0 | E32: =D32/'Pie Chart'!$O$31 -> 0
A33: Hendricks | B33: 96983.4 | C33: 13407.1 | D33: 109485 | E33: =D33/'Pie Chart'!$O$31 -> 91237.5 | G33: 19153 | H33: =0.7*G33 -> 13407.1 | I33: =G33-H33 -> 5745.9
A34: Henry | B34: 13850 | C34: 0 | D34: 16620 | E34: =D34/'Pie Chart'!$O$31 -> 13850
A35: Howard | B35: 18787.5 | C35: 0 | D35: 22545 | E35: =D35/'Pie Chart'!$O$31 -> 18787.5
A36: Huntington | B36: 0 | C36: 0 | E36: =D36/'Pie Chart'!$O$31 -> 0
A37: Jackson | B37: 46350 | C37: 0 | D37: 55620 | E37: =D37/'Pie Chart'!$O$31 -> 46350
A38: Jasper | B38: 16362.5 | C38: 0 | D38: 19635 | E38: =D38/'Pie Chart'!$O$31 -> 16362.5
A39: Jay | B39: 0 | C39: 0 | E39: =D39/'Pie Chart'!$O$31 -> 0
A40: Jefferson | B40: 48112.5 | C40: 0 | D40: 57735 | E40: =D40/'Pie Chart'!$O$31 -> 48112.5
A41: Jennings | B41: 52187.5 | C41: 0 | D41: 62625 | E41: =D41/'Pie Chart'!$O$31 -> 52187.5
A42: Johnson | B42: 479678.8667 | C42: 20089.3 | D42: 356595 | E42: =D42/'Pie Chart'!$O$31 -> 297162.5 | G42: 28699 | H42: =0.7*G42 -> 20089.3 | I42: =G42-H42 -> 8609.7 | K42: =787/'Pie Chart'!$O$31 -> 655.8333333 | L42: ='Second Helpings'!E7 -> 173250.8333
A43: Knox | B43: 0 | C43: 0 | E43: =D43/'Pie Chart'!$O$31 -> 0
A44: Kosciusko | B44: 26750 | C44: 0 | D44: 32100 | E44: =D44/'Pie Chart'!$O$31 -> 26750
A45: Lagrange | B45: 0 | C45: 0 | E45: =D45/'Pie Chart'!$O$31 -> 0
A46: Lake | B46: 125062.5 | C46: 0 | D46: 150075 | E46: =D46/'Pie Chart'!$O$31 -> 125062.5
A47: Laporte | B47: 0 | C47: 0 | E47: =D47/'Pie Chart'!$O$31 -> 0
A48: Lawrence | B48: 11125 | C48: 0 | D48: 13350 | E48: =D48/'Pie Chart'!$O$31 -> 11125
A49: Madison | B49: 108462.5 | C49: 0 | D49: 130155 | E49: =D49/'Pie Chart'!$O$31 -> 108462.5
A50: Marion | B50: 6196140.267 | C50: 282041.9 | D50: 3909120 | E50: =D50/'Pie Chart'!$O$31 -> 3257600 | F50: ='Second Helpings'!F5 -> 706851 | G50: 402917 | H50: =0.7*G50 -> 282041.9 | I50: =G50-H50 -> 120875.1 | J50: =(500000+300000+100000+100000+100000)/'Pie Chart'!$O$31 -> 916666.6667 | K50: =332174/'Pie Chart'!$O$31 -> 276811.6667 | L50: ='Second Helpings'!F7 -> 917335.8333
A51: Marshall | B51: 0 | C51: 0 | E51: =D51/'Pie Chart'!$O$31 -> 0
A52: Martin | B52: 0 | C52: 0 | E52: =D52/'Pie Chart'!$O$31 -> 0
A53: Miami | B53: 0 | C53: 0 | E53: =D53/'Pie Chart'!$O$31 -> 0
A54: Monroe | B54: 79300 | C54: 0 | D54: 95160 | E54: =D54/'Pie Chart'!$O$31 -> 79300
A55: Montgomery | B55: 13562.5 | C55: 0 | D55: 16275 | E55: =D55/'Pie Chart'!$O$31 -> 13562.5
A56: Morgan | B56: 61093.26667 | C56: 9832.9 | D56: 64410 | E56: =D56/'Pie Chart'!$O$31 -> 53675 | G56: 14047 | H56: =0.7*G56 -> 9832.9 | I56: =G56-H56 -> 4214.1 | K56: =3845/'Pie Chart'!$O$31 -> 3204.166667
A57: Newton | B57: 0 | C57: 0 | E57: =D57/'Pie Chart'!$O$31 -> 0
A58: Noble | B58: 0 | C58: 0 | E58: =D58/'Pie Chart'!$O$31 -> 0
A59: Ohio | B59: 0 | C59: 0 | E59: =D59/'Pie Chart'!$O$31 -> 0
A60: Orange | B60: 0 | C60: 0 | E60: =D60/'Pie Chart'!$O$31 -> 0
A61: Owen | B61: 32187.5 | C61: 0 | D61: 38625 | E61: =D61/'Pie Chart'!$O$31 -> 32187.5
A62: Parke | B62: 0 | C62: 0 | E62: =D62/'Pie Chart'!$O$31 -> 0
A63: Perry | B63: 0 | C63: 0 | E63: =D63/'Pie Chart'!$O$31 -> 0
A64: Pike | B64: 16825 | C64: 0 | D64: 20190 | E64: =D64/'Pie Chart'!$O$31 -> 16825
A65: Porter | B65: 0 | C65: 0 | E65: =D65/'Pie Chart'!$O$31 -> 0
A66: Posey | B66: 0 | C66: 0 | E66: =D66/'Pie Chart'!$O$31 -> 0
A67: Pulaski | B67: =SUM(E67:L67)-G67-H67 -> 0 | C67: =H67 -> 0 | E67: =D67/'Pie Chart'!$O$31 -> 0
A68: Putnam | B68: 47378 | C68: 182 | D68: 56760 | E68: =D68/'Pie Chart'!$O$31 -> 47300 | G68: 260 | H68: =0.7*G68 -> 182 | I68: =G68-H68 -> 78
A69: Randolph | B69: 23687.5 | C69: 0 | D69: 28425 | E69: =D69/'Pie Chart'!$O$31 -> 23687.5
A70: Ripley | B70: 24375 | C70: 0 | D70: 29250 | E70: =D70/'Pie Chart'!$O$31 -> 24375
A71: Rush | B71: 42950 | C71: 0 | D71: 51540 | E71: =D71/'Pie Chart'!$O$31 -> 42950
A72: Saint Joseph | B72: 0 | C72: 0 | E72: =D72/'Pie Chart'!$O$31 -> 0
A73: Scott | B73: 0 | C73: 0 | E73: =D73/'Pie Chart'!$O$31 -> 0
A74: Shelby | B74: 34942.4 | C74: 9840.6 | D74: 36870 | E74: =D74/'Pie Chart'!$O$31 -> 30725 | G74: 14058 | H74: =0.7*G74 -> 9840.6 | I74: =G74-H74 -> 4217.4
A75: Spencer | B75: 0 | C75: 0 | E75: =D75/'Pie Chart'!$O$31 -> 0
A76: Starke | B76: 0 | C76: 0 | E76: =D76/'Pie Chart'!$O$31 -> 0
A77: Steuben | B77: 0 | C77: 0 | E77: =D77/'Pie Chart'!$O$31 -> 0
A78: Sullivan | B78: 0 | C78: 0 | E78: =D78/'Pie Chart'!$O$31 -> 0
A79: Switzerland | B79: 0 | C79: 0 | E79: =D79/'Pie Chart'!$O$31 -> 0
A80: Tippecanoe | B80: 15912.5 | C80: 0 | D80: 19095 | E80: =D80/'Pie Chart'!$O$31 -> 15912.5
A81: Tipton | B81: 0 | C81: 0 | E81: =D81/'Pie Chart'!$O$31 -> 0
A82: Union | B82: 14275 | C82: 0 | D82: 17130 | E82: =D82/'Pie Chart'!$O$31 -> 14275
A83: Vanderburgh | B83: 0 | C83: 0 | E83: =D83/'Pie Chart'!$O$31 -> 0
A84: Vermillion | B84: 0 | C84: 0 | E84: =D84/'Pie Chart'!$O$31 -> 0
A85: Vigo | B85: 48475 | C85: 0 | D85: 58170 | E85: =D85/'Pie Chart'!$O$31 -> 48475
A86: Wabash | B86: 0 | C86: 0 | E86: =D86/'Pie Chart'!$O$31 -> 0
A87: Warren | B87: 0 | C87: 0 | E87: =D87/'Pie Chart'!$O$31 -> 0
A88: Warrick | B88: 0 | C88: 0 | E88: =D88/'Pie Chart'!$O$31 -> 0
A89: Washington | B89: 0 | C89: 0 | E89: =D89/'Pie Chart'!$O$31 -> 0
A90: Wayne | B90: 128012.5 | C90: 0 | D90: 153615 | E90: =D90/'Pie Chart'!$O$31 -> 128012.5
A91: Wells | B91: 58212.5 | C91: 0 | D91: 69855 | E91: =D91/'Pie Chart'!$O$31 -> 58212.5
A92: White | B92: 0 | C92: 0 | E92: =D92/'Pie Chart'!$O$31 -> 0
A93: Whitley | B93: 0 | C93: 0 | E93: =D93/'Pie Chart'!$O$31 -> 0
A94: All | B94: =SUM(B2:B93) -> 9572291.867 | C94: =SUM(C2:C93) -> 359078.3 | D94: 7658514 | E94: 6382095

Sheet Second Helpings (hidden)
B2: Second Helpings
C4: Boone | D4: Hamilton | E4: Johnson | F4: Marion | G4: Total
B5: Meals | C5: 8880 | D5: 13056 | F5: =G5-D5-C5 -> 706851 | G5: 728787
B6: Lbs | D6: 21859 | E6: 207901 | F6: =G6-E6-D6 -> 1100803 | G6: 1330563
B7: Lbs to Meals | D7: =D6/'Pie Chart'!$O$31 -> 18215.83333 | E7: =E6/'Pie Chart'!$O$31 -> 173250.8333 | F7: =F6/'Pie Chart'!$O$31 -> 917335.8333 | G7: =SUM(D7:F7) -> 1108802.5

Sheet Charitable Response (hidden)
A1: County | B1: % from non-food bank sources | C1: Food Bank | D1: Food Bank Pounds | E1: Food Bank Meals | F1: Charitable Response
A2: Adams | B2: =1-0.688 -> 0.312 | C2: Community Harvest | D2: ='Feeding America Food Bank'!C2 -> 413125 | E2: =D2/'Pie Chart'!$O$31 -> 344270.8333 | F2: =E2*B2 -> 107412.5
A3: Allen | B3: =1-0.688 -> 0.312 | C3: Community Harvest | D3: ='Feeding America Food Bank'!C3 -> 6322407 | E3: =D3/'Pie Chart'!$O$31 -> 5268672.5 | F3: =E3*B3 -> 1643825.82
A4: Bartholomew | B4: =1-0.615 -> 0.385 | C4: Gleaners | D4: ='Feeding America Food Bank'!C4 -> 406772 | E4: =D4/'Pie Chart'!$O$31 -> 338976.6667 | F4: =E4*B4 -> 130506.0167
A5: Benton | B5: =1-0.71 -> 0.29 | C5: Food Finders | D5: ='Feeding America Food Bank'!C5 -> 74755 | E5: =D5/'Pie Chart'!$O$31 -> 62295.83333 | F5: 18065.79167
A6: Blackford | B6: =1-0.626 -> 0.374 | C6: Second Harvest of East Central IN | D6: ='Feeding America Food Bank'!C6 -> 386135 | E6: =D6/'Pie Chart'!$O$31 -> 321779.1667 | F6: 120345.4083
A7: Boone | B7: =1-0.615 -> 0.385 | C7: Gleaners | D7: ='Feeding America Food Bank'!C7 -> 348086 | E7: =D7/'Pie Chart'!$O$31 -> 290071.6667 | F7: 111677.5917
A8: Brown | B8: =1-0.705 -> 0.295 | C8: Hoosier Hills | D8: ='Feeding America Food Bank'!C8 -> 174133 | E8: =D8/'Pie Chart'!$O$31 -> 145110.8333 | F8: 42807.69583
A9: Carroll | B9: =1-0.71 -> 0.29 | C9: Food Finders | D9: ='Feeding America Food Bank'!C9 -> 162740 | E9: =D9/'Pie Chart'!$O$31 -> 135616.6667 | F9: 39328.83333
A10: Cass | B10: 0.29 | C10: Food Finders | D10: ='Feeding America Food Bank'!C10 -> 394615 | E10: =D10/'Pie Chart'!$O$31 -> 328845.8333 | F10: 95365.29167
A11: Clark | B11: =1-0.848 -> 0.152 | C11: Dare To Care | D11: ='Feeding America Food Bank'!C11 -> 1365610 | E11: =D11/'Pie Chart'!$O$31 -> 1138008.333 | F11: 172977.2667
A12: Clay | B12: =1-0.515 -> 0.485 | C12: Terre Haute Catholic Charities | D12: ='Feeding America Food Bank'!C12 -> 248200 | E12: =D12/'Pie Chart'!$O$31 -> 206833.3333 | F12: 100314.1667
A13: Clinton | B13: =1-0.71 -> 0.29 | C13: Food Finders | D13: ='Feeding America Food Bank'!C13 -> 227653 | E13: =D13/'Pie Chart'!$O$31 -> 189710.8333 | F13: 55016.14167
A14: Crawford | B14: =1-0.848 -> 0.152 | C14: Dare To Care | D14: ='Feeding America Food Bank'!C14 -> 332586 | E14: =D14/'Pie Chart'!$O$31 -> 277155 | F14: 42127.56
A15: Daviess | B15: =1-0.641 -> 0.359 | C15: Tri State | D15: ='Feeding America Food Bank'!C15 -> 344770 | E15: =D15/'Pie Chart'!$O$31 -> 287308.3333 | F15: 103143.6917
A16: Dearborn | B16: =1-0.615 -> 0.385 | C16: Freestone (Cincinatti) used Gleaners | D16: ='Feeding America Food Bank'!C16 -> 746149 | E16: =D16/'Pie Chart'!$O$31 -> 621790.8333 | F16: 239389.4708 | H16: This information came from table 13.1.1 in the Hunger in America 2010 study for the Foodbank which serves the county.
A17: Decatur | B17: =1-0.615 -> 0.385 | C17: Gleaners | D17: ='Feeding America Food Bank'!C17 -> 488499 | E17: =D17/'Pie Chart'!$O$31 -> 407082.5 | F17: 156726.7625
A18: Dekalb | B18: =1-0.688 -> 0.312 | C18: Community Harvest | D18: ='Feeding America Food Bank'!C18 -> 246914 | E18: =D18/'Pie Chart'!$O$31 -> 205761.6667 | F18: 64197.64
A19: Delaware | B19: =1-0.626 -> 0.374 | C19: Second Harvest of East Central IN | D19: ='Feeding America Food Bank'!C19 -> 1980009 | E19: =D19/'Pie Chart'!$O$31 -> 1650007.5 | F19: 617102.805
A20: Dubois | B20: =1-0.641 -> 0.359 | C20: Tri State | D20: ='Feeding America Food Bank'!C20 -> 183685 | E20: =D20/'Pie Chart'!$O$31 -> 153070.8333 | F20: 54952.42917
A21: Elkhart | B21: =1-0.53 -> 0.47 | C21: Food Bank of Northern Indiana | D21: ='Feeding America Food Bank'!C21 -> 1035392 | E21: =D21/'Pie Chart'!$O$31 -> 862826.6667 | F21: 405528.5333
A22: Fayette | B22: =1-0.615 -> 0.385 | C22: Gleaners | D22: ='Feeding America Food Bank'!C22 -> 222562 | E22: =D22/'Pie Chart'!$O$31 -> 185468.3333 | F22: 71405.30833
A23: Floyd | B23: =1-0.848 -> 0.152 | C23: Dare To Care | D23: ='Feeding America Food Bank'!C23 -> 719686 | E23: =D23/'Pie Chart'!$O$31 -> 599738.3333 | F23: 91160.22667
A24: Fountain | B24: =1-0.71 -> 0.29 | C24: Food Finders | D24: ='Feeding America Food Bank'!C24 -> 202911 | E24: =D24/'Pie Chart'!$O$31 -> 169092.5 | F24: 49036.825
A25: Franklin | B25: =1-0.615 -> 0.385 | C25: Freestone (Cincinatti) Used Gleaners | D25: ='Feeding America Food Bank'!C25 -> 138342 | E25: =D25/'Pie Chart'!$O$31 -> 115285 | F25: 44384.725
A26: Fulton | B26: =1-0.71 -> 0.29 | C26: Food Finders | D26: ='Feeding America Food Bank'!C26 -> 137601 | E26: =D26/'Pie Chart'!$O$31 -> 114667.5 | F26: 33253.575
A27: Gibson | B27: =1-0.641 -> 0.359 | C27: Tri State | D27: ='Feeding America Food Bank'!C27 -> 246126 | E27: =D27/'Pie Chart'!$O$31 -> 205105 | F27: 73632.695
A28: Grant | B28: =1-0.626 -> 0.374 | C28: Second Harvest of East Central IN | D28: ='Feeding America Food Bank'!C28 -> 2518850 | E28: =D28/'Pie Chart'!$O$31 -> 2099041.667 | F28: 785041.5833
A29: Greene | B29: =1-0.515 -> 0.485 | C29: Terre Haute Catholic Charities | D29: ='Feeding America Food Bank'!C29 -> 326774 | E29: =D29/'Pie Chart'!$O$31 -> 272311.6667 | F29: 132071.1583
A30: Hamilton | B30: =1-0.615 -> 0.385 | C30: Gleaners | D30: ='Feeding America Food Bank'!C30 -> 967763 | E30: =D30/'Pie Chart'!$O$31 -> 806469.1667 | F30: 310490.6292
A31: Hancock | B31: 0.385 | C31: Gleaners | D31: ='Feeding America Food Bank'!C31 -> 307142 | E31: =D31/'Pie Chart'!$O$31 -> 255951.6667 | F31: 98541.39167
A32: Harrison | B32: =1-0.848 -> 0.152 | C32: Dare To Care | D32: ='Feeding America Food Bank'!C32 -> 674007 | E32: =D32/'Pie Chart'!$O$31 -> 561672.5 | F32: 85374.22
A33: Hendricks | B33: =1-0.615 -> 0.385 | C33: Gleaners | D33: ='Feeding America Food Bank'!C33 -> 531070 | E33: =D33/'Pie Chart'!$O$31 -> 442558.3333 | F33: 170384.9583
A34: Henry | B34: =1-0.626 -> 0.374 | C34: Second Harvest of East Central IN | D34: ='Feeding America Food Bank'!C34 -> 1819740 | E34: =D34/'Pie Chart'!$O$31 -> 1516450 | F34: 567152.3
A35: Howard | B35: =1-0.71 -> 0.29 | C35: Food Finders | D35: ='Feeding America Food Bank'!C35 -> 619661 | E35: =D35/'Pie Chart'!$O$31 -> 516384.1667 | F35: 149751.4083
A36: Huntington | B36: =1-0.688 -> 0.312 | C36: Community Harvest | D36: ='Feeding America Food Bank'!C36 -> 415070 | E36: =D36/'Pie Chart'!$O$31 -> 345891.6667 | F36: 107918.2
A37: Jackson | B37: =1-0.615 -> 0.385 | C37: Gleaners | D37: ='Feeding America Food Bank'!C37 -> 293390 | E37: =D37/'Pie Chart'!$O$31 -> 244491.6667 | F37: 94129.29167
A38: Jasper | B38: =1-0.71 -> 0.29 | C38: Food Finders | D38: ='Feeding America Food Bank'!C38 -> 153713 | E38: =D38/'Pie Chart'!$O$31 -> 128094.1667 | F38: 37147.30833
A39: Jay | B39: =1-0.626 -> 0.374 | C39: Second Harvest of East Central IN | D39: ='Feeding America Food Bank'!C39 -> 489843 | E39: =D39/'Pie Chart'!$O$31 -> 408202.5 | F39: 152667.735
A40: Jefferson | B40: =1-0.615 -> 0.385 | C40: Gleaners | D40: ='Feeding America Food Bank'!C40 -> 364020 | E40: =D40/'Pie Chart'!$O$31 -> 303350 | F40: 116789.75
A41: Jennings | B41: 0.385 | C41: Gleaners | D41: ='Feeding America Food Bank'!C41 -> 352943 | E41: =D41/'Pie Chart'!$O$31 -> 294119.1667 | F41: 113235.8792
A42: Johnson | B42: 0.385 | C42: Gleaners | D42: ='Feeding America Food Bank'!C42 -> 875256 | E42: =D42/'Pie Chart'!$O$31 -> 729380 | F42: 280811.3
A43: Knox | B43: =1-0.515 -> 0.485 | C43: Terre Haute Catholic Charities | D43: ='Feeding America Food Bank'!C43 -> 236005 | E43: =D43/'Pie Chart'!$O$31 -> 196670.8333 | F43: 95385.35417
A44: Kosciusko | B44: =1-0.53 -> 0.47 | C44: Food Bank of Northern Indiana | D44: ='Feeding America Food Bank'!C44 -> 446910 | E44: =D44/'Pie Chart'!$O$31 -> 372425 | F44: 175039.75
A45: Lagrange | B45: =1-0.688 -> 0.312 | C45: Community Harvest | D45: ='Feeding America Food Bank'!C45 -> 647300 | E45: =D45/'Pie Chart'!$O$31 -> 539416.6667 | F45: 168298
A46: Lake | B46: =1-0.612 -> 0.388 | C46: Foodbank of Northwest Indiana | D46: ='Feeding America Food Bank'!C46 -> 517008 | E46: =D46/'Pie Chart'!$O$31 -> 430840 | F46: 167165.92
A47: Laporte | B47: =1-0.53 -> 0.47 | C47: Food Bank of Northern Indiana | D47: ='Feeding America Food Bank'!C47 -> 4231192 | E47: =D47/'Pie Chart'!$O$31 -> 3525993.333 | F47: 1657216.867
A48: Lawrence | B48: =1-0.705 -> 0.295 | C48: Hoosier Hills | D48: ='Feeding America Food Bank'!C48 -> 539368 | E48: =D48/'Pie Chart'!$O$31 -> 449473.3333 | F48: 132594.6333
A49: Madison | B49: =1-0.626 -> 0.374 | C49: Second Harvest of East Central IN | D49: ='Feeding America Food Bank'!C49 -> 2298354 | E49: =D49/'Pie Chart'!$O$31 -> 1915295 | F49: 716320.33
A50: Marion | B50: =1-0.615 -> 0.385 | C50: Gleaners | D50: ='Feeding America Food Bank'!C50 -> 14517627 | E50: =D50/'Pie Chart'!$O$31 -> 12098022.5 | F50: 4657738.663
A51: Marshall | B51: =1-0.53 -> 0.47 | C51: Food Bank of Northern Indiana | D51: ='Feeding America Food Bank'!C51 -> 398130 | E51: =D51/'Pie Chart'!$O$31 -> 331775 | F51: 155934.25
A52: Martin | B52: =1-0.705 -> 0.295 | C52: Hoosier Hills | D52: ='Feeding America Food Bank'!C52 -> 71004 | E52: =D52/'Pie Chart'!$O$31 -> 59170 | F52: 17455.15
A53: Miami | B53: =1-0.71 -> 0.29 | C53: Food Finders | D53: ='Feeding America Food Bank'!C53 -> 284197 | E53: =D53/'Pie Chart'!$O$31 -> 236830.8333 | F53: 68680.94167
A54: Monroe | B54: =1-0.705 -> 0.295 | C54: Hoosier Hills | D54: ='Feeding America Food Bank'!C54 -> 1591171 | E54: =D54/'Pie Chart'!$O$31 -> 1325975.833 | F54: 391162.8708
A55: Montgomery | B55: =1-0.71 -> 0.29 | C55: Food Finders | D55: ='Feeding America Food Bank'!C55 -> 315400 | E55: =D55/'Pie Chart'!$O$31 -> 262833.3333 | F55: 76221.66667
A56: Morgan | B56: =1-0.615 -> 0.385 | C56: Gleaners | D56: ='Feeding America Food Bank'!C56 -> 298642 | E56: =D56/'Pie Chart'!$O$31 -> 248868.3333 | F56: 95814.30833
A57: Newton | B57: =1-0.71 -> 0.29 | C57: Food Finders | D57: ='Feeding America Food Bank'!C57 -> 158453 | E57: =D57/'Pie Chart'!$O$31 -> 132044.1667 | F57: 38292.80833
A58: Noble | B58: =1-0.688 -> 0.312 | C58: Community Harvest | D58: ='Feeding America Food Bank'!C58 -> 1055801 | E58: =D58/'Pie Chart'!$O$31 -> 879834.1667 | F58: 274508.26
A59: Ohio | B59: =1-0.615 -> 0.385 | C59: Freestone (Cincinatti) Used Gleaners | D59: ='Feeding America Food Bank'!C59 -> 31994 | E59: =D59/'Pie Chart'!$O$31 -> 26661.66667 | F59: 10264.74167
A60: Orange | B60: =1-0.705 -> 0.295 | C60: Hoosier Hills | D60: ='Feeding America Food Bank'!C60 -> 210752 | E60: =D60/'Pie Chart'!$O$31 -> 175626.6667 | F60: 51809.86667
A61: Owen | B61: 0.295 | C61: Hoosier Hills | D61: ='Feeding America Food Bank'!C61 -> 455409 | E61: =D61/'Pie Chart'!$O$31 -> 379507.5 | F61: 111954.7125
A62: Parke | B62: =1-0.515 -> 0.485 | C62: Terre Haute Catholic Charities | D62: ='Feeding America Food Bank'!C62 -> 207703 | E62: =D62/'Pie Chart'!$O$31 -> 173085.8333 | F62: 83946.62917
A63: Perry | B63: =1-0.641 -> 0.359 | C63: Tri State | D63: ='Feeding America Food Bank'!C63 -> 189593 | E63: =D63/'Pie Chart'!$O$31 -> 157994.1667 | F63: 56719.90583
A64: Pike | B64: 0.359 | C64: Tri State | D64: ='Feeding America Food Bank'!C64 -> 145308 | E64: =D64/'Pie Chart'!$O$31 -> 121090 | F64: 43471.31
A65: Porter | B65: =1-0.612 -> 0.388 | C65: Foodbank of Northwest Indiana | D65: ='Feeding America Food Bank'!C65 -> 737503 | E65: =D65/'Pie Chart'!$O$31 -> 614585.8333 | F65: 238459.3033
A66: Posey | B66: =1-0.641 -> 0.359 | C66: Tri State | D66: ='Feeding America Food Bank'!C66 -> 154073 | E66: =D66/'Pie Chart'!$O$31 -> 128394.1667 | F66: 46093.50583
A67: Pulaski | B67: =1-0.71 -> 0.29 | C67: Food Finders | D67: ='Feeding America Food Bank'!C67 -> 81799 | E67: =D67/'Pie Chart'!$O$31 -> 68165.83333 | F67: 19768.09167
A68: Putnam | B68: =1-0.615 -> 0.385 | C68: Gleaners | D68: ='Feeding America Food Bank'!C68 -> 252601 | E68: =D68/'Pie Chart'!$O$31 -> 210500.8333 | F68: =E68*B68 -> 81042.82083
A69: Randolph | B69: =1-0.626 -> 0.374 | C69: Second Harvest of East Central IN | D69: ='Feeding America Food Bank'!C69 -> 419582 | E69: =D69/'Pie Chart'!$O$31 -> 349651.6667 | F69: 130769.7233
A70: Ripley | B70: =1-0.615 -> 0.385 | C70: Gleaners | D70: ='Feeding America Food Bank'!C70 -> 287875 | E70: =D70/'Pie Chart'!$O$31 -> 239895.8333 | F70: 92359.89583
A71: Rush | B71: 0.385 | C71: Gleaners | D71: ='Feeding America Food Bank'!C71 -> 130150 | E71: =D71/'Pie Chart'!$O$31 -> 108458.3333 | F71: 41756.45833
A72: Saint Joseph | B72: =1-0.53 -> 0.47 | C72: Food Bank of Northern Indiana | D72: ='Feeding America Food Bank'!C72 -> 247985 | E72: =D72/'Pie Chart'!$O$31 -> 206654.1667 | F72: 97127.45833
A73: Scott | B73: =1-0.615 -> 0.385 | C73: Gleaners | D73: ='Feeding America Food Bank'!C73 -> 330111 | E73: =D73/'Pie Chart'!$O$31 -> 275092.5 | F73: 105910.6125
A74: Shelby | B74: 0.385 | C74: Gleaners | D74: ='Feeding America Food Bank'!C74 -> 50492 | E74: =D74/'Pie Chart'!$O$31 -> 42076.66667 | F74: 16199.51667
A75: Spencer | B75: =1-0.848 -> 0.152 | C75: Dare To Care | D75: ='Feeding America Food Bank'!C75 -> 2846162 | E75: =D75/'Pie Chart'!$O$31 -> 2371801.667 | F75: 360513.8533
A76: Starke | B76: =1-0.53 -> 0.47 | C76: Food Bank of Northern Indiana | D76: ='Feeding America Food Bank'!C76 -> 181320 | E76: =D76/'Pie Chart'!$O$31 -> 151100 | F76: 71017
A77: Steuben | B77: =1-0.688 -> 0.312 | C77: Community Harvest | D77: ='Feeding America Food Bank'!C77 -> 499826 | E77: =D77/'Pie Chart'!$O$31 -> 416521.6667 | F77: 129954.76
A78: Sullivan | B78: =1-0.515 -> 0.485 | C78: Terre Haute Catholic Charities | D78: ='Feeding America Food Bank'!C78 -> 137272 | E78: =D78/'Pie Chart'!$O$31 -> 114393.3333 | F78: 55480.76667
A79: Switzerland | B79: =1-0.615 -> 0.385 | C79: Freestone (Cincinatti) Used Gleaners | D79: ='Feeding America Food Bank'!C79 -> 63596 | E79: =D79/'Pie Chart'!$O$31 -> 52996.66667 | F79: 20403.71667
A80: Tippecanoe | B80: =1-0.71 -> 0.29 | C80: Food Finders | D80: ='Feeding America Food Bank'!C80 -> 2731473 | E80: =D80/'Pie Chart'!$O$31 -> 2276227.5 | F80: 660105.975
A81: Tipton | B81: 0.29 | C81: Food Finders | D81: ='Feeding America Food Bank'!C81 -> 153308 | E81: =D81/'Pie Chart'!$O$31 -> 127756.6667 | F81: 37049.43333
A82: Union | B82: =1-0.615 -> 0.385 | C82: Gleaners | D82: ='Feeding America Food Bank'!C82 -> 48281 | E82: =D82/'Pie Chart'!$O$31 -> 40234.16667 | F82: 15490.15417
A83: Vanderburgh | B83: =1-0.641 -> 0.359 | C83: Tri State | D83: ='Feeding America Food Bank'!C83 -> 1695920 | E83: =D83/'Pie Chart'!$O$31 -> 1413266.667 | F83: 507362.7333
A84: Vermillion | B84: =1-0.515 -> 0.485 | C84: Terre Haute Catholic Charities | D84: ='Feeding America Food Bank'!C84 -> 105624 | E84: =D84/'Pie Chart'!$O$31 -> 88020 | F84: 42689.7
A85: Vigo | B85: 0.485 | C85: Terre Haute Catholic Charities | D85: ='Feeding America Food Bank'!C85 -> 1181219 | E85: =D85/'Pie Chart'!$O$31 -> 984349.1667 | F85: 477409.3458
A86: Wabash | B86: =1-0.626 -> 0.374 | C86: Second Harvest of East Central IN | D86: ='Feeding America Food Bank'!C86 -> 644038 | E86: =D86/'Pie Chart'!$O$31 -> 536698.3333 | F86: 200725.1767
A87: Warren | B87: =1-0.71 -> 0.29 | C87: Food Finders | D87: ='Feeding America Food Bank'!C87 -> 87749 | E87: =D87/'Pie Chart'!$O$31 -> 73124.16667 | F87: 21206.00833
A88: Warrick | B88: =1-0.641 -> 0.359 | C88: Tri State | D88: ='Feeding America Food Bank'!C88 -> 452812 | E88: =D88/'Pie Chart'!$O$31 -> 377343.3333 | F88: 135466.2567
A89: Washington | B89: =1-0.848 -> 0.152 | C89: Dare To Care | D89: ='Feeding America Food Bank'!C89 -> 365641 | E89: =D89/'Pie Chart'!$O$31 -> 304700.8333 | F89: 46314.52667
A90: Wayne | B90: =1-0.615 -> 0.385 | C90: Gleaners | D90: ='Feeding America Food Bank'!C90 -> 591227 | E90: =D90/'Pie Chart'!$O$31 -> 492689.1667 | F90: 189685.3292
A91: Wells | B91: =1-0.688 -> 0.312 | C91: Community Harvest | D91: ='Feeding America Food Bank'!C91 -> 239722 | E91: =D91/'Pie Chart'!$O$31 -> 199768.3333 | F91: 62327.72
A92: White | B92: =1-0.71 -> 0.29 | C92: Food Finders | D92: ='Feeding America Food Bank'!C92 -> 282820 | E92: =D92/'Pie Chart'!$O$31 -> 235683.3333 | F92: 68348.16667
A93: Whitley | B93: =1-0.688 -> 0.312 | C93: Community Harvest | D93: ='Feeding America Food Bank'!C93 -> 499363 | E93: =D93/'Pie Chart'!$O$31 -> 416135.8333 | F93: 129834.38
A94: All | F94: =SUM(F2:F93) -> 21232061.21
